Body Name,ONS SNAC ID,Pay Date,Transaction No,Amount �,Supplier Name,Company Registration No,Department,Account Name,CIPFA Service Reporting
Swale Borough Council,29UM,07/09/2022,1200644,1000.00,1ST TEYNHAM SCOUT GROUP,                         ,COMMUNITY SAFETY,Grants & Subscriptions,Central Services to the Public
Swale Borough Council,29UM,07/09/2022,1200470,1189.89,ADELANTE SOFTWARE LTD,4450760                  ,FINANCIAL SERVICES,Computer Equipment & Materials,Internal Trading Cost Centres
Swale Borough Council,29UM,07/09/2022,1200544,525.00,AIR QUALITY CONSULTANTS LTD,2814570                  ,MKS ENVIRONMENTAL SERVICES,Consultancy/Specialist Advice,Environmental and Regulatory Services
Swale Borough Council,29UM,07/09/2022,1200630,397.35,ALLSTAR BUSINESS SOLUTIONS LTD - (DT),1073098                  ,SERVICE DELIVERY,Petrol/Derv & Oil,Cultural and Related Services
Swale Borough Council,29UM,07/09/2022,1200630,29.39,ALLSTAR BUSINESS SOLUTIONS LTD - (DT),1073098                  ,LEISURE & OPEN SPACES,Fuel For Contract Vehicles,Cultural and Related Services
Swale Borough Council,29UM,07/09/2022,1200555,14373.41,APCOA PARKING (UK) LTD,2572947                  ,CAR PARKS,Private Contractors,Highway and Transport Services
Swale Borough Council,29UM,07/09/2022,1200555,21560.12,APCOA PARKING (UK) LTD,2572947                  ,CAR PARKS,Private Contractors,Highway and Transport Services
Swale Borough Council,29UM,07/09/2022,1200438,955.50,BLENWOOD LTD,4383277                  ,LEISURE & OPEN SPACES,Maintenance - Grounds,Cultural and Related Services
Swale Borough Council,29UM,07/09/2022,1200459,427.50,BLENWOOD LTD,4383277                  ,LEISURE & OPEN SPACES,Maintenance - Grounds,Environmental and Regulatory Services
Swale Borough Council,29UM,07/09/2022,1200568,380.00,BLENWOOD LTD,4383277                  ,LEISURE & OPEN SPACES,Maintenance - Grounds,Cultural and Related Services
Swale Borough Council,29UM,07/09/2022,1200569,285.00,BLENWOOD LTD,4383277                  ,LEISURE & OPEN SPACES,Maintenance - Grounds,Environmental and Regulatory Services
Swale Borough Council,29UM,07/09/2022,1200469,12136.83,BRAMBLE HUB LIMITED,4136381                  ,FINANCIAL SERVICES,Computer Equipment & Materials,Internal Trading Cost Centres
Swale Borough Council,29UM,07/09/2022,1200715,1302.32,BROADWAY ESTATES,                         ,REVENUE SERVICES,KCC Relocation Scheme - Expenditure,Housing
Swale Borough Council,29UM,07/09/2022,1200221,4925.88,CAMPBELL REITH HILL LLP,OC300082                 ,ECONOMIC DEVELOPMENT,Construction,Not used in this Structure
Swale Borough Council,29UM,07/09/2022,1200222,5000.00,CAMPBELL REITH HILL LLP,OC300082                 ,ECONOMIC DEVELOPMENT,Construction,Not used in this Structure
Swale Borough Council,29UM,07/09/2022,1200239,280.00,CLOUD 9 ASSIST LIMITED,08145753                 ,COMMUNITY SAFETY,CCTV Monitoring Service,Environmental and Regulatory Services
Swale Borough Council,29UM,07/09/2022,1200228,51516.47,COGNITION LAND & WATER LTD,05487694                 ,ECONOMIC DEVELOPMENT,Construction,Not used in this Structure
Swale Borough Council,29UM,07/09/2022,1200643,250.00,COMMUNITY HERITAGE EVENTS LTD,                         ,COMMUNITY SAFETY,Grants & Subscriptions,Central Services to the Public
Swale Borough Council,29UM,07/09/2022,1200319,1425.06,DSSL GROUP LTD,6993052                  ,COMMUNITY SAFETY,Fees and Services,Environmental and Regulatory Services
Swale Borough Council,29UM,07/09/2022,1200315,500.00,EAST KENT MENCAP,                         ,CLIMATE AND ECOLOGICAL EMERGENCY,Grants & Subscriptions,Environmental and Regulatory Services
Swale Borough Council,29UM,07/09/2022,1200462,1400.00,ELECTRICAL TESTING LTD,02476049                 ,LEISURE & OPEN SPACES,Maintenance - Grounds,Cultural and Related Services
Swale Borough Council,29UM,07/09/2022,1200437,2450.00,ELITE ARBORISTS LTD,09486869                 ,LEISURE & OPEN SPACES,Tree Maintenance,Cultural and Related Services
Swale Borough Council,29UM,07/09/2022,1200216,650.00,FAVERSHAM STRIKEFORCE,                         ,COMMUNITY SAFETY,Grants & Subscriptions,Central Services to the Public
Swale Borough Council,29UM,07/09/2022,1200507,1200.00,FAVERSHAM SWIMMING POOL MNGMT COMM LTD,                         ,COMMUNITY SAFETY,Grants & Subscriptions,Cultural and Related Services
Swale Borough Council,29UM,07/09/2022,1200520,4503.90,G2V RECRUITMENT GROUP LIMITED,08067630                 ,PLANNING SERVICES,Agency/Contract Staff,Planning and Development Services
Swale Borough Council,29UM,07/09/2022,1199549,54.75,G4S CASH SOLUTIONS UK LIMITED,3433297                  ,EXCHEQUER,Cash Security,Internal Trading Cost Centres
Swale Borough Council,29UM,07/09/2022,1199549,176.00,G4S CASH SOLUTIONS UK LIMITED,3433297                  ,CAR PARKS,Cash Security,Highway and Transport Services
Swale Borough Council,29UM,07/09/2022,1199549,285.00,G4S CASH SOLUTIONS UK LIMITED,3433297                  ,CAR PARKS,Cash Security,Highway and Transport Services
Swale Borough Council,29UM,07/09/2022,1199549,16.50,G4S CASH SOLUTIONS UK LIMITED,3433297                  ,MULTISTOREY CAR PARK,Cash Security,Highway and Transport Services
Swale Borough Council,29UM,07/09/2022,1199549,22.50,G4S CASH SOLUTIONS UK LIMITED,3433297                  ,MULTISTOREY CAR PARK,Cash Security,Highway and Transport Services
Swale Borough Council,29UM,07/09/2022,1200655,400.00,HEART AND SOIL COMMUNITY CIC,                         ,COMMUNITY SAFETY,Grants & Subscriptions,Central Services to the Public
Swale Borough Council,29UM,07/09/2022,1200586,1620.00,HIYACAR,08690056                 ,CLIMATE AND ECOLOGICAL EMERGENCY,Fees and Services,Environmental and Regulatory Services
Swale Borough Council,29UM,07/09/2022,1200609,1839.80,INSIGHT DIRECT (UK) LTD,2579852                  ,MKS ICT,Computer Equipment & Materials,Internal Trading Cost Centres
Swale Borough Council,29UM,07/09/2022,1199990,2067.52,KOMPAN LTD,1704623                  ,LEISURE & OPEN SPACES,Maintenance - Grounds,Cultural and Related Services
Swale Borough Council,29UM,07/09/2022,1200617,630.00,LUSHLAND,4289261                  ,PLANNING SERVICES,Fees and Services,Planning and Development Services
Swale Borough Council,29UM,07/09/2022,1200397,300.00,MAIDSTONE BOROUGH COUNCIL,                         ,CONTRACTS,Variations To Contract,Environmental and Regulatory Services
Swale Borough Council,29UM,07/09/2022,1200397,772.01,MAIDSTONE BOROUGH COUNCIL,                         ,CONTRACTS,"Clearance Of Waste,Fly Tipping",Environmental and Regulatory Services
Swale Borough Council,29UM,07/09/2022,1200397,288.64,MAIDSTONE BOROUGH COUNCIL,                         ,CONTRACTS,Variations To Contract,Environmental and Regulatory Services
Swale Borough Council,29UM,07/09/2022,1200398,2474.60,MAIDSTONE BOROUGH COUNCIL,                         ,CONTRACTS,Equipment Purchase,Environmental and Regulatory Services
Swale Borough Council,29UM,07/09/2022,1200398,14576.34,MAIDSTONE BOROUGH COUNCIL,                         ,CONTRACTS,Equipment Purchase,Environmental and Regulatory Services
Swale Borough Council,29UM,07/09/2022,1200562,88043.79,MAIDSTONE BOROUGH COUNCIL,                         ,CONTRACTS,Private Contractors,Environmental and Regulatory Services
Swale Borough Council,29UM,07/09/2022,1200562,233596.21,MAIDSTONE BOROUGH COUNCIL,                         ,CONTRACTS,Private Contractors,Environmental and Regulatory Services
Swale Borough Council,29UM,07/09/2022,1200709,2019.00,MARTIN AND CO CANTERBURY (DT),                         ,HOUSING SERVICES,Homelessness  Prevention Services,Housing
Swale Borough Council,29UM,07/09/2022,1200455,3796.00,MAYLOW CONSTRUCTION LTD,                         ,LEISURE & OPEN SPACES,Maintenance - Grounds,Cultural and Related Services
Swale Borough Council,29UM,07/09/2022,1200518,4683.00,MAYLOW CONSTRUCTION LTD,                         ,LEISURE & OPEN SPACES,Construction,Not used in this Structure
Swale Borough Council,29UM,07/09/2022,1200713,1200.00,MERAKI ESTATES LIMITED (DT),                         ,HOUSING SERVICES,Homelessness  Prevention Services,Housing
Swale Borough Council,29UM,07/09/2022,1200554,435.00,METRIC GROUP LTD,2560839                  ,CAR PARKS,Fees - Licence,Highway and Transport Services
Swale Borough Council,29UM,07/09/2022,1200710,4800.00,REDACTED PERSONAL INFORMATION,                         ,HOUSING SERVICES,LIS - Landlord Payments (new in 2018),Housing
Swale Borough Council,29UM,07/09/2022,1200542,19794.09,MONITOR CLEANING SERVICES LTD,02526388                 ,CONTRACTS,Private Contractors,Environmental and Regulatory Services
Swale Borough Council,29UM,07/09/2022,1200468,5792.62,MPS MARKETING SERVICES LIMITED,6360656                  ,DEMOCRATIC & ELECTORAL SERVICES,Fees and Services,Central Services to the Public
Swale Borough Council,29UM,07/09/2022,1200431,1296.00,MR J W GATES,                         ,SERVICE DELIVERY,Maintenance - Grounds,Cultural and Related Services
Swale Borough Council,29UM,07/09/2022,1200431,480.00,MR J W GATES,                         ,SERVICE DELIVERY,Maintenance - Grounds,Cultural and Related Services
Swale Borough Council,29UM,07/09/2022,1200471,146.00,MR J W GATES,                         ,SERVICE DELIVERY,Private Contractors - CIS,Environmental and Regulatory Services
Swale Borough Council,29UM,07/09/2022,1200471,200.00,MR J W GATES,                         ,SERVICE DELIVERY,Private Contractors - CIS,Environmental and Regulatory Services
Swale Borough Council,29UM,07/09/2022,1200432,495.00,NABCP,                         ,COMMUNITY SAFETY,Fees and Services,Environmental and Regulatory Services
Swale Borough Council,29UM,07/09/2022,1200461,9250.00,ODGERS INTERIM,                         ,PLANNING SERVICES,Agency/Contract Staff,Internal Trading Cost Centres
Swale Borough Council,29UM,07/09/2022,1200640,750.00,POPPY CLUB,                         ,COMMUNITY SAFETY,Grants & Subscriptions,Central Services to the Public
Swale Borough Council,29UM,07/09/2022,1200646,290.34,PORTAKABIN LIMITED,685303                   ,LEISURE & OPEN SPACES,Maintenance - Grounds,Environmental and Regulatory Services
Swale Borough Council,29UM,07/09/2022,1200714,18900.00,S.B.C. - ENERGY REBATE (DT),                         ,REVENUE SERVICES,Payments in Year,Ledger/Suspense Codes
Swale Borough Council,29UM,07/09/2022,1200060,-300.00,SCOTTISH WATER BUSINESS STREAM LTD,SC294924                 ,COMMUNITY SAFETY,Water - Metered,Cultural and Related Services
Swale Borough Council,29UM,07/09/2022,1200063,-300.00,SCOTTISH WATER BUSINESS STREAM LTD,SC294924                 ,COMMUNITY SAFETY,Water - Metered,Cultural and Related Services
Swale Borough Council,29UM,07/09/2022,1200575,589.31,SCOTTISH WATER BUSINESS STREAM LTD,SC294924                 ,SERVICE DELIVERY,Water - Metered,Cultural and Related Services
Swale Borough Council,29UM,07/09/2022,1200598,293.13,SCOTTISH WATER BUSINESS STREAM LTD,SC294924                 ,LEISURE & OPEN SPACES,Water - Metered,Cultural and Related Services
Swale Borough Council,29UM,07/09/2022,1200632,18453.31,SERCO LEISURE OPERATING LIMITED,04687478                 ,LEISURE & OPEN SPACES,Contracts,Cultural and Related Services
Swale Borough Council,29UM,07/09/2022,1200506,1785.83,SHEPPEY MATTERS,3946296                  ,COMMUNITY SAFETY,Grants & Subscriptions,Cultural and Related Services
Swale Borough Council,29UM,07/09/2022,1200125,5.75,SODEXO MOTIVATION SOLUTIONS UK LTD,2680629                  ,HUMAN RESOURCES,Fees and Services,Corporate & Democratic Core
Swale Borough Council,29UM,07/09/2022,1200572,5.75,SODEXO MOTIVATION SOLUTIONS UK LTD,2680629                  ,HUMAN RESOURCES,Fees and Services,Corporate & Democratic Core
Swale Borough Council,29UM,07/09/2022,1200453,2500.00,SQUARECUBE ARTISANS,                         ,CONTRACTS,Private Contractors,Environmental and Regulatory Services
Swale Borough Council,29UM,07/09/2022,1200656,2500.00,SWALE FOODBANK,                         ,COMMUNITY SAFETY,Grants & Subscriptions,Public Health
Swale Borough Council,29UM,07/09/2022,1200615,17000.00,SWECO UK LTD,2888385                  ,MKS ENVIRONMENTAL SERVICES,Consultancy/Specialist Advice,Environmental and Regulatory Services
Swale Borough Council,29UM,07/09/2022,1200356,1913.96,THE ALEXANDER CENTRE,07281634                 ,COMMISSIONING & CUSTOMER CONTACT,Rent,Internal Trading Cost Centres
Swale Borough Council,29UM,07/09/2022,1200215,1600.00,THE AUTISM APPRENTICE CIC,                         ,COMMUNITY SAFETY,Grants & Subscriptions,Central Services to the Public
Swale Borough Council,29UM,07/09/2022,1200393,1738.88,THE OYSTER PARTNERSHIP,05020374                 ,MKS LEGAL SERVICES,Agency/Contract Staff,Internal Trading Cost Centres
Swale Borough Council,29UM,07/09/2022,1200394,1738.88,THE OYSTER PARTNERSHIP,05020374                 ,MKS LEGAL SERVICES,Agency/Contract Staff,Internal Trading Cost Centres
Swale Borough Council,29UM,07/09/2022,1200395,1548.69,THE OYSTER PARTNERSHIP,05020374                 ,MKS LEGAL SERVICES,Agency/Contract Staff,Internal Trading Cost Centres
Swale Borough Council,29UM,07/09/2022,1200396,2035.00,THE OYSTER PARTNERSHIP,05020374                 ,MKS LEGAL SERVICES,Agency/Contract Staff,Internal Trading Cost Centres
Swale Borough Council,29UM,07/09/2022,1200436,10000.00,THE PROJECT CENTRE,2625312                  ,ECONOMIC DEVELOPMENT,Fees and Services,Planning and Development Services
Swale Borough Council,29UM,07/09/2022,1200223,95443.25,UKDN WATERFLOW (LG) LIMITED,06241527                 ,ECONOMIC DEVELOPMENT,Capital Constuction - CIS Works,Not used in this Structure
Swale Borough Council,29UM,07/09/2022,1200347,-29.20,UNISON,                         ,HUMAN RESOURCES,Payroll - Unison Deductions Admin Charge,Corporate & Democratic Core
Swale Borough Council,29UM,07/09/2022,1200284,15000.00,VIBE COMMUNITY LIMITED,                         ,COMMUNITY SAFETY,Grants & Subscriptions,Planning and Development Services
Swale Borough Council,29UM,07/09/2022,1200411,970.94,VIVID RESOURCING LIMITED,06459262                 ,MKS LEGAL SERVICES,Agency/Contract Staff,Internal Trading Cost Centres
Swale Borough Council,29UM,07/09/2022,1200412,793.76,VIVID RESOURCING LIMITED,06459262                 ,MKS LEGAL SERVICES,Agency/Contract Staff,Internal Trading Cost Centres
Swale Borough Council,29UM,07/09/2022,1200514,486.88,VIVID RESOURCING LIMITED,06459262                 ,ENVIRONMENTAL RESPONSE TEAM,Agency/Contract Staff,Internal Trading Cost Centres
Swale Borough Council,29UM,07/09/2022,1200551,967.50,VIVID RESOURCING LIMITED,06459262                 ,MKS LEGAL SERVICES,Agency/Contract Staff,Internal Trading Cost Centres
Swale Borough Council,29UM,07/09/2022,1200552,793.76,VIVID RESOURCING LIMITED,06459262                 ,MKS LEGAL SERVICES,Agency/Contract Staff,Internal Trading Cost Centres
Swale Borough Council,29UM,07/09/2022,1200451,1400.00,WEALD WOODSCAPES LTD,8028446                  ,LEISURE & OPEN SPACES,Maintenance - Grounds,Cultural and Related Services
Swale Borough Council,29UM,07/09/2022,1200441,430.50,WEIGHTMANS LLP,OC326117                 ,REVENUE SERVICES,Court Costs,Housing
Swale Borough Council,29UM,07/09/2022,1200505,500.00,WEST FAVERSHAM COMMUNITY ASSOCIATION,                         ,COMMUNITY SAFETY,Grants & Subscriptions,Cultural and Related Services
Swale Borough Council,29UM,07/09/2022,1200718,1974.17,WORLDPAY (DT),07316500                 ,REVENUE SERVICES,Commission Paid,Central Services to the Public
Swale Borough Council,29UM,07/09/2022,1200718,47.00,WORLDPAY (DT),07316500                 ,REVENUE SERVICES,Commission Paid,Central Services to the Public
Swale Borough Council,29UM,07/09/2022,1200718,23.50,WORLDPAY (DT),07316500                 ,REVENUE SERVICES,Commission Paid,Housing
Swale Borough Council,29UM,07/09/2022,1200718,47.00,WORLDPAY (DT),07316500                 ,EXCHEQUER,Commission Paid,Internal Trading Cost Centres
Swale Borough Council,29UM,07/09/2022,1200718,258.50,WORLDPAY (DT),07316500                 ,EXCHEQUER,Commission Paid,Internal Trading Cost Centres
Swale Borough Council,29UM,07/09/2022,1200718,5.85,WORLDPAY (DT),07316500                 ,EXCHEQUER,Commission Paid,Internal Trading Cost Centres
Swale Borough Council,29UM,07/09/2022,1200722,3074.06,WORLDPAY (DT),07316500                 ,REVENUE SERVICES,Commission Paid,Central Services to the Public
Swale Borough Council,29UM,07/09/2022,1200722,58.74,WORLDPAY (DT),07316500                 ,REVENUE SERVICES,Commission Paid,Central Services to the Public
Swale Borough Council,29UM,07/09/2022,1200722,783.65,WORLDPAY (DT),07316500                 ,EXCHEQUER,Commission Paid,Internal Trading Cost Centres
Swale Borough Council,29UM,07/09/2022,1200722,3.41,WORLDPAY (DT),07316500                 ,EXCHEQUER,Commission Paid,Internal Trading Cost Centres
Swale Borough Council,29UM,07/09/2022,1200314,1933.00,WPS UNITED KINGDOM LTD,04211140                 ,MULTISTOREY CAR PARK,Fees and Services,Highway and Transport Services
Swale Borough Council,29UM,14/09/2022,1200904,1025.00,AC LETTINGS LTD,                         ,HOUSING SERVICES,Homelessness  Prevention Services,Housing
Swale Borough Council,29UM,14/09/2022,1200571,43867.45,ACCURATE ROOFING LTD,6405887                  ,PROPERTY SERVICES,Construction,Not used in this Structure
Swale Borough Council,29UM,14/09/2022,1200852,620.16,ACORN MAINTENANCE SERVICES,3546898                  ,HOUSING SERVICES,Housing Renovation Grants,Not used in this Structure
Swale Borough Council,29UM,14/09/2022,1200856,7011.26,ACORN MAINTENANCE SERVICES,3546898                  ,HOUSING SERVICES,Housing Renovation Grants,Not used in this Structure
Swale Borough Council,29UM,14/09/2022,1200861,4882.80,ACORN MAINTENANCE SERVICES,3546898                  ,HOUSING SERVICES,Housing Renovation Grants,Not used in this Structure
Swale Borough Council,29UM,14/09/2022,1200849,1252.32,ADVANCED BUILDING & MAINTENANCE SERVICES LTD,6659934                  ,HOUSING SERVICES,Housing Renovation Grants,Not used in this Structure
Swale Borough Council,29UM,14/09/2022,1200629,1300.00,AIREY CONSULTANCY SERVICE LTD,03518844                 ,REVENUE SERVICES,Fees and Services,Central Services to the Public
Swale Borough Council,29UM,14/09/2022,1200629,1300.00,AIREY CONSULTANCY SERVICE LTD,03518844                 ,REVENUE SERVICES,Fees and Services,Housing
Swale Borough Council,29UM,14/09/2022,1200631,4865.00,AIREY CONSULTANCY SERVICE LTD,03518844                 ,REVENUE SERVICES,Fees and Services,Housing
Swale Borough Council,29UM,14/09/2022,1200684,1466.74,ALLPAY LTD,02933191                 ,REVENUE SERVICES,Bank Charges Pay Point,Central Services to the Public
Swale Borough Council,29UM,14/09/2022,1200684,16.95,ALLPAY LTD,02933191                 ,REVENUE SERVICES,Bank Charges Pay Point,Housing
Swale Borough Council,29UM,14/09/2022,1200684,14.50,ALLPAY LTD,02933191                 ,EXCHEQUER,Bank Charges Pay Point,Internal Trading Cost Centres
Swale Borough Council,29UM,14/09/2022,1200422,265.00,ANNA OUTDOORS,                         ,LEISURE & OPEN SPACES,Fees and Services,Cultural and Related Services
Swale Borough Council,29UM,14/09/2022,1200779,589.00,ARCHWAY HIGHWAY SERVICES,07894230                 ,CAR PARKS,Road Lining,Highway and Transport Services
Swale Borough Council,29UM,14/09/2022,1200779,695.00,ARCHWAY HIGHWAY SERVICES,07894230                 ,CAR PARKS,Road Lining,Highway and Transport Services
Swale Borough Council,29UM,14/09/2022,1200780,387.50,ARCHWAY HIGHWAY SERVICES,07894230                 ,CAR PARKS,Road Lining,Highway and Transport Services
Swale Borough Council,29UM,14/09/2022,1200780,695.00,ARCHWAY HIGHWAY SERVICES,07894230                 ,CAR PARKS,Road Lining,Highway and Transport Services
Swale Borough Council,29UM,14/09/2022,1200539,-17022.00,ARLINGCLOSE LTD,2853836                  ,FINANCIAL SERVICES,Consultancy/Specialist Advice,Corporate & Democratic Core
Swale Borough Council,29UM,14/09/2022,1200540,17954.71,ARLINGCLOSE LTD,2853836                  ,FINANCIAL SERVICES,Consultancy/Specialist Advice,Corporate & Democratic Core
Swale Borough Council,29UM,14/09/2022,1200698,3110.00,ASCENDIT LIFTS LTD,3493530                  ,HOUSING SERVICES,Staying Put small repairs (contractors),Housing
Swale Borough Council,29UM,14/09/2022,1200764,42.67,ASHFORD FM,                         ,LEISURE & OPEN SPACES,Service Contracts,Environmental and Regulatory Services
Swale Borough Council,29UM,14/09/2022,1200764,42.66,ASHFORD FM,                         ,LEISURE & OPEN SPACES,Service Contracts,Cultural and Related Services
Swale Borough Council,29UM,14/09/2022,1200764,42.67,ASHFORD FM,                         ,COMMUNITY SAFETY,Service Contracts,Cultural and Related Services
Swale Borough Council,29UM,14/09/2022,1200764,42.66,ASHFORD FM,                         ,PROPERTY SERVICES,Service Contracts,Trading Undertaking
Swale Borough Council,29UM,14/09/2022,1200764,42.66,ASHFORD FM,                         ,SERVICE DELIVERY,Service Contracts,Cultural and Related Services
Swale Borough Council,29UM,14/09/2022,1200764,42.67,ASHFORD FM,                         ,HOUSING SERVICES,General Maintenance,Housing
Swale Borough Council,29UM,14/09/2022,1200764,42.67,ASHFORD FM,                         ,HOUSING SERVICES,General Maintenance,Housing
Swale Borough Council,29UM,14/09/2022,1200764,42.67,ASHFORD FM,                         ,HOUSING SERVICES,General Maintenance,Housing
Swale Borough Council,29UM,14/09/2022,1200764,42.66,ASHFORD FM,                         ,PROPERTY SERVICES,Service Contracts,Corporate & Democratic Core
Swale Borough Council,29UM,14/09/2022,1200764,42.67,ASHFORD FM,                         ,LEISURE & OPEN SPACES,Service Contracts,Cultural and Related Services
Swale Borough Council,29UM,14/09/2022,1200764,42.67,ASHFORD FM,                         ,CONTRACTS,Service Contracts,Environmental and Regulatory Services
Swale Borough Council,29UM,14/09/2022,1200764,42.67,ASHFORD FM,                         ,LEISURE & OPEN SPACES,Service Contracts,Cultural and Related Services
Swale Borough Council,29UM,14/09/2022,1200809,168620.04,ASTRAL LTD,2430111                  ,PROPERTY SERVICES,Construction,Not used in this Structure
Swale Borough Council,29UM,14/09/2022,1200292,300.00,BLENWOOD LTD,4383277                  ,LEISURE & OPEN SPACES,Maintenance - Grounds,Cultural and Related Services
Swale Borough Council,29UM,14/09/2022,1200747,1760.00,REDACTED PERSONAL INFORMATION,10317009                 ,HOUSING SERVICES,Fees and Services,Housing
Swale Borough Council,29UM,14/09/2022,1200744,330.12,C S MITCHELL LTD,04143041                 ,SERVICE DELIVERY,Private Contractors - CIS,Environmental and Regulatory Services
Swale Borough Council,29UM,14/09/2022,1200831,4125.00,CANTERBURY DIOCESAN BOARD OF FINANCE,                         ,CAR PARKS,Rent,Highway and Transport Services
Swale Borough Council,29UM,14/09/2022,1200570,16728.00,CORNERSTONE PROPERTY GROUP,GB233222746              ,HOUSING SERVICES,NL (Nightly Lets) - Homelessness Landlord Payments,Housing
Swale Borough Council,29UM,14/09/2022,1200848,2169.61,DAYTRAD LIMITED,7654373                  ,HOUSING SERVICES,Housing Renovation Grants,Not used in this Structure
Swale Borough Council,29UM,14/09/2022,1200634,1500.00,DIOCESE OF CANTERBURY,145650                   ,HOUSING SERVICES,KCC Relocation Scheme - Expenditure,Housing
Swale Borough Council,29UM,14/09/2022,1200727,725.00,DJC ESTATES,                         ,HOUSING SERVICES,RDS - Landlord claim on Bond Scheme,Housing
Swale Borough Council,29UM,14/09/2022,1200605,600.00,EVOLVE AMS UK LTD,08819378                 ,HOUSING SERVICES,Staying Put small repairs (contractors),Housing
Swale Borough Council,29UM,14/09/2022,1200853,3079.59,EVOLVE AMS UK LTD,08819378                 ,HOUSING SERVICES,Housing Renovation Grants,Not used in this Structure
Swale Borough Council,29UM,14/09/2022,1200860,7620.08,EVOLVE AMS UK LTD,08819378                 ,HOUSING SERVICES,Housing Renovation Grants,Not used in this Structure
Swale Borough Council,29UM,14/09/2022,1200699,1435.89,GLASDON U.K.LIMITED,2160576                  ,SERVICE DELIVERY,Equipment Purchase,Cultural and Related Services
Swale Borough Council,29UM,14/09/2022,1200854,9127.74,GREGORY (KENT) LTD,08056242                 ,HOUSING SERVICES,Housing Renovation Grants,Not used in this Structure
Swale Borough Council,29UM,14/09/2022,1200858,5400.00,GREGORY (KENT) LTD,08056242                 ,HOUSING SERVICES,Housing Renovation Grants,Not used in this Structure
Swale Borough Council,29UM,14/09/2022,1200227,675.75,H S JACKSON & SON (FENCING) LTD,910291                   ,LEISURE & OPEN SPACES,Maintenance - Grounds,Cultural and Related Services
Swale Borough Council,29UM,14/09/2022,1200688,5433.00,HDH PLANNING AND DEVELOPMENT LTD,08555548                 ,PLANNING SERVICES,Fees and Services,Planning and Development Services
Swale Borough Council,29UM,14/09/2022,1200690,5595.50,HIGHER ELEVATION LTD,4078005                  ,HOUSING SERVICES,Staying Put small repairs (contractors),Housing
Swale Borough Council,29UM,14/09/2022,1200855,7189.30,HUBBARD & HOUGHTON CONSTRUCTION LTD,                         ,HOUSING SERVICES,Housing Renovation Grants,Not used in this Structure
Swale Borough Council,29UM,14/09/2022,1200859,6205.19,HUBBARD & HOUGHTON CONSTRUCTION LTD,                         ,HOUSING SERVICES,Housing Renovation Grants,Not used in this Structure
Swale Borough Council,29UM,14/09/2022,1200835,587.24,INVICTA TELECARE LTD T/A CAREIUM,4133585                  ,HOUSING SERVICES,Fees and Services,Housing
Swale Borough Council,29UM,14/09/2022,1200601,789.90,IPS (UK) LTD,009971838                ,CAR PARKS,Commission Paid,Highway and Transport Services
Swale Borough Council,29UM,14/09/2022,1200847,7872.48,J & D SYSTEMS,                         ,HOUSING SERVICES,Housing Renovation Grants,Not used in this Structure
Swale Borough Council,29UM,14/09/2022,1200850,6350.00,J & D SYSTEMS,                         ,HOUSING SERVICES,Housing Renovation Grants,Not used in this Structure
Swale Borough Council,29UM,14/09/2022,1200851,7496.54,J & D SYSTEMS,                         ,HOUSING SERVICES,Housing Renovation Grants,Not used in this Structure
Swale Borough Council,29UM,14/09/2022,1200737,1000.00,REDACTED PERSONAL INFORMATION,                         ,HOUSING SERVICES,Homelessness  Prevention Services,Housing
Swale Borough Council,29UM,14/09/2022,1200828,655.35,KENT COUNTY COUNCIL (KCS),                         ,PROPERTY SERVICES,Gas,Corporate & Democratic Core
Swale Borough Council,29UM,14/09/2022,1200886,12500.00,KINGS CHAMBERS (DT),                         ,REVENUE SERVICES,Legal Fees,Central Services to the Public
Swale Borough Council,29UM,14/09/2022,1200886,2500.00,KINGS CHAMBERS (DT),                         ,REVENUE SERVICES,Legal Fees,Central Services to the Public
Swale Borough Council,29UM,14/09/2022,1200889,81.00,LAND REGISTRY - (DT),                         ,PROPERTY SERVICES,Fees - Land Registry,Trading Undertaking
Swale Borough Council,29UM,14/09/2022,1200889,56.00,LAND REGISTRY - (DT),                         ,REVENUE SERVICES,Fees - Land Registry,Central Services to the Public
Swale Borough Council,29UM,14/09/2022,1200889,24.00,LAND REGISTRY - (DT),                         ,PLANNING SERVICES,Fees - Land Registry,Planning and Development Services
Swale Borough Council,29UM,14/09/2022,1200889,21.00,LAND REGISTRY - (DT),                         ,HOUSING SERVICES,Fees - Land Registry,Housing
Swale Borough Council,29UM,14/09/2022,1200889,6.00,LAND REGISTRY - (DT),                         ,ENVIRONMENTAL RESPONSE TEAM,Fees - Land Registry,Internal Trading Cost Centres
Swale Borough Council,29UM,14/09/2022,1200889,20.00,LAND REGISTRY - (DT),                         ,MKS LEGAL SERVICES,Fees - Land Registry,Internal Trading Cost Centres
Swale Borough Council,29UM,14/09/2022,1200889,10.00,LAND REGISTRY - (DT),                         ,LEISURE & OPEN SPACES,Fees - Land Registry,Cultural and Related Services
Swale Borough Council,29UM,14/09/2022,1200889,18.00,LAND REGISTRY - (DT),                         ,HOUSING SERVICES,Fees - Land Registry,Housing
Swale Borough Council,29UM,14/09/2022,1200889,18.00,LAND REGISTRY - (DT),                         ,HOUSING SERVICES,Fees - Land Registry,Housing
Swale Borough Council,29UM,14/09/2022,1200890,18.00,LAND REGISTRY - (DT),                         ,PROPERTY SERVICES,Fees - Land Registry,Trading Undertaking
Swale Borough Council,29UM,14/09/2022,1200890,64.00,LAND REGISTRY - (DT),                         ,REVENUE SERVICES,Fees - Land Registry,Central Services to the Public
Swale Borough Council,29UM,14/09/2022,1200890,63.00,LAND REGISTRY - (DT),                         ,PLANNING SERVICES,Fees - Land Registry,Planning and Development Services
Swale Borough Council,29UM,14/09/2022,1200890,9.00,LAND REGISTRY - (DT),                         ,ECONOMIC DEVELOPMENT,Fees - Land Registry,Internal Trading Cost Centres
Swale Borough Council,29UM,14/09/2022,1200890,80.00,LAND REGISTRY - (DT),                         ,MKS LEGAL SERVICES,Fees - Land Registry,Internal Trading Cost Centres
Swale Borough Council,29UM,14/09/2022,1200890,-20.00,LAND REGISTRY - (DT),                         ,MKS LEGAL SERVICES,Fees - Land Registry,Internal Trading Cost Centres
Swale Borough Council,29UM,14/09/2022,1200890,3.00,LAND REGISTRY - (DT),                         ,HOUSING SERVICES,Fees - Land Registry,Housing
Swale Borough Council,29UM,14/09/2022,1200890,36.00,LAND REGISTRY - (DT),                         ,HOUSING SERVICES,Fees - Land Registry,Housing
Swale Borough Council,29UM,14/09/2022,1200799,304.52,LEASYS UK LTD,03385187                 ,HOUSING SERVICES,Hire & Leases,Housing
Swale Borough Council,29UM,14/09/2022,1200766,300.00,LEMAR LIMITED,04350292                 ,CAR PARKS,Maintenance - Grounds,Highway and Transport Services
Swale Borough Council,29UM,14/09/2022,1200766,105.00,LEMAR LIMITED,04350292                 ,CAR PARKS,Maintenance - Grounds,Highway and Transport Services
Swale Borough Council,29UM,14/09/2022,1200767,400.00,LEMAR LIMITED,04350292                 ,CAR PARKS,Maintenance - Grounds,Highway and Transport Services
Swale Borough Council,29UM,14/09/2022,1200767,250.00,LEMAR LIMITED,04350292                 ,CAR PARKS,Maintenance - Grounds,Highway and Transport Services
Swale Borough Council,29UM,14/09/2022,1200768,550.12,LEMAR LIMITED,04350292                 ,SERVICE DELIVERY,Private Contractors CIS - 'funded by grants',Highway and Transport Services
Swale Borough Council,29UM,14/09/2022,1200768,600.00,LEMAR LIMITED,04350292                 ,SERVICE DELIVERY,Private Contractors CIS - 'funded by grants',Highway and Transport Services
Swale Borough Council,29UM,14/09/2022,1200769,800.00,LEMAR LIMITED,04350292                 ,CAR PARKS,Resurfacing,Highway and Transport Services
Swale Borough Council,29UM,14/09/2022,1200769,1400.00,LEMAR LIMITED,04350292                 ,CAR PARKS,Resurfacing,Highway and Transport Services
Swale Borough Council,29UM,14/09/2022,1200770,600.00,LEMAR LIMITED,04350292                 ,SERVICE DELIVERY,Private Contractors - CIS,Highway and Transport Services
Swale Borough Council,29UM,14/09/2022,1200770,620.00,LEMAR LIMITED,04350292                 ,SERVICE DELIVERY,Private Contractors - CIS,Highway and Transport Services
Swale Borough Council,29UM,14/09/2022,1200559,12333.00,LINK PROPERTY GROUP,                         ,HOUSING SERVICES,NL (Nightly Lets) - Homelessness Landlord Payments,Housing
Swale Borough Council,29UM,14/09/2022,1200402,1267.00,MAGEES GUESTHOUSE,                         ,HOUSING SERVICES,B & B - Homelessness Landlord Payments,Housing
Swale Borough Council,29UM,14/09/2022,1200403,476.00,MAGEES GUESTHOUSE,                         ,HOUSING SERVICES,B & B - Homelessness Landlord Payments,Housing
Swale Borough Council,29UM,14/09/2022,1200546,1239.00,MAGEES GUESTHOUSE,                         ,HOUSING SERVICES,B & B - Homelessness Landlord Payments,Housing
Swale Borough Council,29UM,14/09/2022,1200729,1155.00,MAGEES GUESTHOUSE,                         ,HOUSING SERVICES,B & B - Homelessness Landlord Payments,Housing
Swale Borough Council,29UM,14/09/2022,1200442,464.30,MAIDSTONE BOROUGH COUNCIL,                         ,CONTRACTS,Private Contractors,Environmental and Regulatory Services
Swale Borough Council,29UM,14/09/2022,1200442,100.00,MAIDSTONE BOROUGH COUNCIL,                         ,CONTRACTS,Private Contractors,Environmental and Regulatory Services
Swale Borough Council,29UM,14/09/2022,1200442,1384.73,MAIDSTONE BOROUGH COUNCIL,                         ,CONTRACTS,"Clearance Of Waste,Fly Tipping",Environmental and Regulatory Services
Swale Borough Council,29UM,14/09/2022,1200784,1400.00,MAIDSTONE SIGNS LTD.,1031640                  ,CAR PARKS,Road Signs,Highway and Transport Services
Swale Borough Council,29UM,14/09/2022,1200410,9349.82,MATRIX SCM LTD,2227962                  ,HUMAN RESOURCES,Agency/Contract Staff,Internal Trading Cost Centres
Swale Borough Council,29UM,14/09/2022,1200541,20176.25,MATRIX SCM LTD,2227962                  ,HUMAN RESOURCES,Agency/Contract Staff,Internal Trading Cost Centres
Swale Borough Council,29UM,14/09/2022,1200743,16220.87,MATRIX SCM LTD,2227962                  ,HUMAN RESOURCES,Agency/Contract Staff,Internal Trading Cost Centres
Swale Borough Council,29UM,14/09/2022,1200446,708.32,MEDWAY ACCOMMODATION LIMITED,                         ,HOUSING SERVICES,B & B - Homelessness Landlord Payments,Housing
Swale Borough Council,29UM,14/09/2022,1200446,186.40,MEDWAY ACCOMMODATION LIMITED,                         ,HOUSING SERVICES,B & B - Homelessness Landlord Payments,Housing
Swale Borough Council,29UM,14/09/2022,1200446,37.80,MEDWAY ACCOMMODATION LIMITED,                         ,HOUSING SERVICES,B & B - Homelessness Landlord Payments,Housing
Swale Borough Council,29UM,14/09/2022,1200446,143.64,MEDWAY ACCOMMODATION LIMITED,                         ,HOUSING SERVICES,B & B - Homelessness Landlord Payments,Housing
Swale Borough Council,29UM,14/09/2022,1200447,212.80,MEDWAY ACCOMMODATION LIMITED,                         ,HOUSING SERVICES,B & B - Homelessness Landlord Payments,Housing
Swale Borough Council,29UM,14/09/2022,1200447,808.64,MEDWAY ACCOMMODATION LIMITED,                         ,HOUSING SERVICES,B & B - Homelessness Landlord Payments,Housing
Swale Borough Council,29UM,14/09/2022,1200447,37.80,MEDWAY ACCOMMODATION LIMITED,                         ,HOUSING SERVICES,B & B - Homelessness Landlord Payments,Housing
Swale Borough Council,29UM,14/09/2022,1200447,143.64,MEDWAY ACCOMMODATION LIMITED,                         ,HOUSING SERVICES,B & B - Homelessness Landlord Payments,Housing
Swale Borough Council,29UM,14/09/2022,1200602,808.64,MEDWAY ACCOMMODATION LIMITED,                         ,HOUSING SERVICES,B & B - Homelessness Landlord Payments,Housing
Swale Borough Council,29UM,14/09/2022,1200602,212.80,MEDWAY ACCOMMODATION LIMITED,                         ,HOUSING SERVICES,B & B - Homelessness Landlord Payments,Housing
Swale Borough Council,29UM,14/09/2022,1200645,808.64,MEDWAY ACCOMMODATION LIMITED,                         ,HOUSING SERVICES,B & B - Homelessness Landlord Payments,Housing
Swale Borough Council,29UM,14/09/2022,1200645,212.80,MEDWAY ACCOMMODATION LIMITED,                         ,HOUSING SERVICES,B & B - Homelessness Landlord Payments,Housing
Swale Borough Council,29UM,14/09/2022,1200645,61.56,MEDWAY ACCOMMODATION LIMITED,                         ,HOUSING SERVICES,B & B - Homelessness Landlord Payments,Housing
Swale Borough Council,29UM,14/09/2022,1200645,16.20,MEDWAY ACCOMMODATION LIMITED,                         ,HOUSING SERVICES,B & B - Homelessness Landlord Payments,Housing
Swale Borough Council,29UM,14/09/2022,1200796,884.64,MEDWAY ACCOMMODATION LIMITED,                         ,HOUSING SERVICES,B & B - Homelessness Landlord Payments,Housing
Swale Borough Council,29UM,14/09/2022,1200796,232.80,MEDWAY ACCOMMODATION LIMITED,                         ,HOUSING SERVICES,B & B - Homelessness Landlord Payments,Housing
Swale Borough Council,29UM,14/09/2022,1200749,3922.50,MOMENTUM DESIGN MANAGEMENT LTD,04693551                 ,ECONOMIC DEVELOPMENT,Private Contractors - CIS,Planning and Development Services
Swale Borough Council,29UM,14/09/2022,1200543,4156.76,MONITOR CLEANING SERVICES LTD,02526388                 ,CONTRACTS,Private Contractors,Environmental and Regulatory Services
Swale Borough Council,29UM,14/09/2022,1200661,1000.00,REDACTED PERSONAL INFORMATION,                         ,ENVIRONMENTAL RESPONSE TEAM,Legal Fees,Planning and Development Services
Swale Borough Council,29UM,14/09/2022,1200786,1000.00,REDACTED PERSONAL INFORMATION,                         ,ENVIRONMENTAL RESPONSE TEAM,Legal Fees,Planning and Development Services
Swale Borough Council,29UM,14/09/2022,1200794,10500.00,REDACTED PERSONAL INFORMATION,                         ,HOUSING SERVICES,LIS - Landlord Payments (new in 2018),Housing
Swale Borough Council,29UM,14/09/2022,1200511,1240.00,REDACTED PERSONAL INFORMATION,                         ,HOUSING SERVICES,NL (Nightly Lets) - Homelessness Landlord Payments,Housing
Swale Borough Council,29UM,14/09/2022,1200695,334.50,NETWORK MERCHANTS LIMITED (DT),3295353                  ,MULTISTOREY CAR PARK,Commission Paid,Highway and Transport Services
Swale Borough Council,29UM,14/09/2022,1200669,884.00,NEWAUTO LTD T/A MOGOUK,3051444                  ,LICENCING,Equipment Purchase,Environmental and Regulatory Services
Swale Borough Council,29UM,14/09/2022,1200669,14.90,NEWAUTO LTD T/A MOGOUK,3051444                  ,LICENCING,Equipment Purchase,Environmental and Regulatory Services
Swale Borough Council,29UM,14/09/2022,1200582,10788.00,PARAMOUNT INDEPENDENT PROPERTY SERVICES,                         ,HOUSING SERVICES,NL (Nightly Lets) - Homelessness Landlord Payments,Housing
Swale Borough Council,29UM,14/09/2022,1200682,7859.00,PARAMOUNT INDEPENDENT PROPERTY SERVICES,                         ,HOUSING SERVICES,NL (Nightly Lets) - Homelessness Landlord Payments,Housing
Swale Borough Council,29UM,14/09/2022,1200625,8000.00,PENNA PLC,1915150                  ,FINANCIAL SERVICES,Agency/Contract Staff,Internal Trading Cost Centres
Swale Borough Council,29UM,14/09/2022,1200519,1085.00,PERKINS HOMES,                         ,HOUSING SERVICES,NL (Nightly Lets) - Homelessness Landlord Payments,Housing
Swale Borough Council,29UM,14/09/2022,1200287,2018.72,PREMIER INN (ATOS) DT,                         ,HOUSING SERVICES,B & B - Homelessness Landlord Payments,Housing
Swale Borough Council,29UM,14/09/2022,1200628,2500.00,PROJECT SALUS CIC,7454402                  ,COMMUNITY SAFETY,Grants & Subscriptions,Planning and Development Services
Swale Borough Council,29UM,14/09/2022,1200628,2500.00,PROJECT SALUS CIC,7454402                  ,COMMUNITY SAFETY,Grants & Subscriptions,Environmental and Regulatory Services
Swale Borough Council,29UM,14/09/2022,1200463,2325.00,PROPERTY LETTINGS TODAY LTD,12914018                 ,HOUSING SERVICES,NL (Nightly Lets) - Homelessness Landlord Payments,Housing
Swale Borough Council,29UM,14/09/2022,1200464,300.00,PROPERTY LETTINGS TODAY LTD,12914018                 ,HOUSING SERVICES,NL (Nightly Lets) - Homelessness Landlord Payments,Housing
Swale Borough Council,29UM,14/09/2022,1200584,3500.00,QUARTZ PROJECT SERVICES,7279317                  ,PROPERTY SERVICES,Capitalised Fees And Charges,Not used in this Structure
Swale Borough Council,29UM,14/09/2022,1200585,5000.00,QUARTZ PROJECT SERVICES,7279317                  ,PROPERTY SERVICES,Capitalised Fees And Charges,Not used in this Structure
Swale Borough Council,29UM,14/09/2022,1200911,1475.00,REARDON PROPERTIES,                         ,HOUSING SERVICES,Homelessness  Prevention Services,Housing
Swale Borough Council,29UM,14/09/2022,1200662,1224.92,ROYAL MAIL GROUP LTD,4138203                  ,PROPERTY SERVICES,Postage,Holding Codes
Swale Borough Council,29UM,14/09/2022,1200662,3.69,ROYAL MAIL GROUP LTD,4138203                  ,PROPERTY SERVICES,Postage,Holding Codes
Swale Borough Council,29UM,14/09/2022,1200670,464.21,S & J SERVICES,                         ,LEISURE & OPEN SPACES,Maintenance - Grounds,Cultural and Related Services
Swale Borough Council,29UM,14/09/2022,1200670,500.00,S & J SERVICES,                         ,LEISURE & OPEN SPACES,Maintenance - Grounds,Cultural and Related Services
Swale Borough Council,29UM,14/09/2022,1200416,38278.77,SCOTTISH WATER BUSINESS STREAM LTD,SC294924                 ,PROPERTY SERVICES,Water - Metered,Corporate & Democratic Core
Swale Borough Council,29UM,14/09/2022,1200595,-30263.65,SCOTTISH WATER BUSINESS STREAM LTD,SC294924                 ,PROPERTY SERVICES,Water - Metered,Corporate & Democratic Core
Swale Borough Council,29UM,14/09/2022,1200596,-7304.26,SCOTTISH WATER BUSINESS STREAM LTD,SC294924                 ,PROPERTY SERVICES,Water - Metered,Corporate & Democratic Core
Swale Borough Council,29UM,14/09/2022,1200512,1240.00,SINGH LETTINGS LTD,                         ,HOUSING SERVICES,NL (Nightly Lets) - Homelessness Landlord Payments,Housing
Swale Borough Council,29UM,14/09/2022,1200513,1240.00,SINGH LETTINGS LTD,                         ,HOUSING SERVICES,NL (Nightly Lets) - Homelessness Landlord Payments,Housing
Swale Borough Council,29UM,14/09/2022,1200663,2317.71,SITEIMPROVE LTD,4932868                  ,COMMUNICATIONS,Fees - Licence,Internal Trading Cost Centres
Swale Borough Council,29UM,14/09/2022,1200857,8314.42,SOUTH EAST BUILDING CO LTD,1786838                  ,HOUSING SERVICES,Housing Renovation Grants,Not used in this Structure
Swale Borough Council,29UM,14/09/2022,1200703,5680.00,SOUTHGATE ROOFING,                         ,HOUSING SERVICES,Staying Put small repairs (contractors),Housing
Swale Borough Council,29UM,14/09/2022,1200423,266.67,STORAGE KING,                         ,HOUSING SERVICES,Storage Expenses,Housing
Swale Borough Council,29UM,14/09/2022,1200826,624.27,TELSOLUTIONS LIMITED,5076948                  ,REVENUE SERVICES,Fees and Services,Central Services to the Public
Swale Borough Council,29UM,14/09/2022,1200693,1758.57,THE COPYRIGHT LICENSING AGENCY LTD,                         ,COMMUNICATIONS,Fees - Licence,Internal Trading Cost Centres
Swale Borough Council,29UM,14/09/2022,1200813,900.00,THE LETTINGS CENTRE,                         ,HOUSING SERVICES,RDS - Landlord claim on Bond Scheme,Housing
Swale Borough Council,29UM,14/09/2022,1200620,2035.00,THE OYSTER PARTNERSHIP,05020374                 ,MKS LEGAL SERVICES,Agency/Contract Staff,Internal Trading Cost Centres
Swale Borough Council,29UM,14/09/2022,1200757,1650.00,THE OYSTER PARTNERSHIP,05020374                 ,MKS LEGAL SERVICES,Agency/Contract Staff,Internal Trading Cost Centres
Swale Borough Council,29UM,14/09/2022,1200800,268.00,THREE TOWNS OFFICE EQUIPMENT LTD,                         ,ENVIRONMENTAL RESPONSE TEAM,Furniture,Internal Trading Cost Centres
Swale Borough Council,29UM,14/09/2022,1200756,6100.00,TILE HILL INTERIM & EXECUTIVE LTD,10484468                 ,PROPERTY SERVICES,Agency/Contract Staff,Internal Trading Cost Centres
Swale Borough Council,29UM,14/09/2022,1200752,903.00,TMP (UK) LTD,5648039                  ,DEMOCRATIC & ELECTORAL SERVICES,Recruitment Adverts - Staff,Internal Trading Cost Centres
Swale Borough Council,29UM,14/09/2022,1200753,2324.25,TMP (UK) LTD,5648039                  ,MKS LEGAL SERVICES,Recruitment Adverts - Staff,Internal Trading Cost Centres
Swale Borough Council,29UM,14/09/2022,1200758,903.00,TMP (UK) LTD,5648039                  ,CHIEF EXECUTIVE,Recruitment Adverts - Staff,Internal Trading Cost Centres
Swale Borough Council,29UM,14/09/2022,1200791,1724.00,TMP (UK) LTD,5648039                  ,PLANNING SERVICES,Recruitment Adverts - Staff,Internal Trading Cost Centres
Swale Borough Council,29UM,14/09/2022,1200677,2593.37,TOTAL SECURITY SERVICES LTD (TSS),02426982                 ,PROPERTY SERVICES,Fees and Services,Corporate & Democratic Core
Swale Borough Council,29UM,14/09/2022,1200400,507.50,TRAFALGAR TAVERN LTD,07999329                 ,HOUSING SERVICES,B & B - Homelessness Landlord Payments,Housing
Swale Borough Council,29UM,14/09/2022,1200400,1242.50,TRAFALGAR TAVERN LTD,07999329                 ,HOUSING SERVICES,B & B - Homelessness Landlord Payments,Housing
Swale Borough Council,29UM,14/09/2022,1200561,682.50,TRAFALGAR TAVERN LTD,07999329                 ,HOUSING SERVICES,B & B - Homelessness Landlord Payments,Housing
Swale Borough Council,29UM,14/09/2022,1200561,815.00,TRAFALGAR TAVERN LTD,07999329                 ,HOUSING SERVICES,B & B - Homelessness Landlord Payments,Housing
Swale Borough Council,29UM,14/09/2022,1200170,855.00,VIVID RESOURCING LIMITED,06459262                 ,ENVIRONMENTAL RESPONSE TEAM,Agency/Contract Staff,Internal Trading Cost Centres
Swale Borough Council,29UM,14/09/2022,1200776,967.93,VIVID RESOURCING LIMITED,06459262                 ,MKS LEGAL SERVICES,Agency/Contract Staff,Internal Trading Cost Centres
Swale Borough Council,29UM,14/09/2022,1200777,793.76,VIVID RESOURCING LIMITED,06459262                 ,MKS LEGAL SERVICES,Agency/Contract Staff,Internal Trading Cost Centres
Swale Borough Council,29UM,14/09/2022,1200814,24.56,VR SANI-CO LTD,3588359                  ,LEISURE & OPEN SPACES,Service Contracts,Cultural and Related Services
Swale Borough Council,29UM,14/09/2022,1200814,12.88,VR SANI-CO LTD,3588359                  ,LEISURE & OPEN SPACES,Service Contracts,Cultural and Related Services
Swale Borough Council,29UM,14/09/2022,1200814,29.02,VR SANI-CO LTD,3588359                  ,LEISURE & OPEN SPACES,Service Contracts,Cultural and Related Services
Swale Borough Council,29UM,14/09/2022,1200814,10.05,VR SANI-CO LTD,3588359                  ,LEISURE & OPEN SPACES,Service Contracts,Cultural and Related Services
Swale Borough Council,29UM,14/09/2022,1200814,16.80,VR SANI-CO LTD,3588359                  ,LEISURE & OPEN SPACES,Service Contracts,Cultural and Related Services
Swale Borough Council,29UM,14/09/2022,1200814,6.14,VR SANI-CO LTD,3588359                  ,COMMUNITY SAFETY,Service Contracts,Cultural and Related Services
Swale Borough Council,29UM,14/09/2022,1200814,221.04,VR SANI-CO LTD,3588359                  ,PROPERTY SERVICES,Service Contracts,Corporate & Democratic Core
Swale Borough Council,29UM,14/09/2022,1200814,51.52,VR SANI-CO LTD,3588359                  ,PROPERTY SERVICES,Service Contracts,Corporate & Democratic Core
Swale Borough Council,29UM,14/09/2022,1200814,14.50,VR SANI-CO LTD,3588359                  ,PROPERTY SERVICES,Service Contracts,Corporate & Democratic Core
Swale Borough Council,29UM,14/09/2022,1200814,26.80,VR SANI-CO LTD,3588359                  ,PROPERTY SERVICES,Service Contracts,Corporate & Democratic Core
Swale Borough Council,29UM,14/09/2022,1200755,577.50,WEIGHTMANS LLP,OC326117                 ,POLICY,Consultancy/Specialist Advice,Internal Trading Cost Centres
Swale Borough Council,29UM,14/09/2022,1200549,1519.00,WGYB SHJ BUSINESS  LIMITED,                         ,HOUSING SERVICES,NL (Nightly Lets) - Homelessness Landlord Payments,Housing
Swale Borough Council,29UM,14/09/2022,1200004,457.33,WHISTL UK LIMITED,04417047                 ,REVENUE SERVICES,Postage,Central Services to the Public
Swale Borough Council,29UM,14/09/2022,1200004,228.66,WHISTL UK LIMITED,04417047                 ,REVENUE SERVICES,Postage,Housing
Swale Borough Council,29UM,14/09/2022,1200004,113.74,WHISTL UK LIMITED,04417047                 ,PROPERTY SERVICES,Postage,Holding Codes
Swale Borough Council,29UM,14/09/2022,1200004,453.86,WHISTL UK LIMITED,04417047                 ,DEMOCRATIC & ELECTORAL SERVICES,Postage,Central Services to the Public
Swale Borough Council,29UM,14/09/2022,1200164,447.81,WHISTL UK LIMITED,04417047                 ,REVENUE SERVICES,Postage,Central Services to the Public
Swale Borough Council,29UM,14/09/2022,1200164,223.90,WHISTL UK LIMITED,04417047                 ,REVENUE SERVICES,Postage,Housing
Swale Borough Council,29UM,14/09/2022,1200164,430.65,WHISTL UK LIMITED,04417047                 ,PROPERTY SERVICES,Postage,Holding Codes
Swale Borough Council,29UM,14/09/2022,1200164,146.66,WHISTL UK LIMITED,04417047                 ,DEMOCRATIC & ELECTORAL SERVICES,Postage,Central Services to the Public
Swale Borough Council,29UM,14/09/2022,1200317,1034.02,WHISTL UK LIMITED,04417047                 ,REVENUE SERVICES,Postage,Central Services to the Public
Swale Borough Council,29UM,14/09/2022,1200317,517.01,WHISTL UK LIMITED,04417047                 ,REVENUE SERVICES,Postage,Housing
Swale Borough Council,29UM,14/09/2022,1200317,72.45,WHISTL UK LIMITED,04417047                 ,PROPERTY SERVICES,Postage,Holding Codes
Swale Borough Council,29UM,14/09/2022,1200317,80.40,WHISTL UK LIMITED,04417047                 ,DEMOCRATIC & ELECTORAL SERVICES,Postage,Central Services to the Public
Swale Borough Council,29UM,14/09/2022,1200365,296.00,WILLOW TREE HOME SOLUTIONS LTD,                         ,HOUSING SERVICES,Staying Put small repairs (contractors),Housing
Swale Borough Council,29UM,21/09/2022,1200883,360.00,ADELANTE SOFTWARE LTD,4450760                  ,REVENUE SERVICES,Commission Paid,Central Services to the Public
Swale Borough Council,29UM,21/09/2022,1200883,277.74,ADELANTE SOFTWARE LTD,4450760                  ,EXCHEQUER,Commission Paid,Internal Trading Cost Centres
Swale Borough Council,29UM,21/09/2022,1200827,500.00,APPLAUSE RURAL TOURING,                         ,LEISURE & OPEN SPACES,Fees and Services,Cultural and Related Services
Swale Borough Council,29UM,21/09/2022,1200961,604.50,ARCHWAY HIGHWAY SERVICES,07894230                 ,CAR PARKS,Road Lining,Highway and Transport Services
Swale Borough Council,29UM,21/09/2022,1200961,695.00,ARCHWAY HIGHWAY SERVICES,07894230                 ,CAR PARKS,Road Lining,Highway and Transport Services
Swale Borough Council,29UM,21/09/2022,1200616,80000.00,BEAM UP LTD,10637337                 ,HOUSING SERVICES,Homelessness  Prevention Services,Housing
Swale Borough Council,29UM,21/09/2022,1200837,342.00,BLENWOOD LTD,4383277                  ,LEISURE & OPEN SPACES,Maintenance - Grounds,Cultural and Related Services
Swale Borough Council,29UM,21/09/2022,1200839,3720.00,BLENWOOD LTD,4383277                  ,LEISURE & OPEN SPACES,Grounds Maint Suspense,Cultural and Related Services
Swale Borough Council,29UM,21/09/2022,1200675,4968.00,BPTW LLP,OC301697                 ,RAINBOW HOMES,Fees and Services,Housing
Swale Borough Council,29UM,21/09/2022,1200676,4968.00,BPTW LLP,OC301697                 ,RAINBOW HOMES,Fees and Services,Housing
Swale Borough Council,29UM,21/09/2022,1200787,2239.75,CH&I ASSOCIATES LTD,7526331                  ,FINANCIAL SERVICES,Fees and Services,Corporate & Democratic Core
Swale Borough Council,29UM,21/09/2022,1200787,122.85,CH&I ASSOCIATES LTD,7526331                  ,FINANCIAL SERVICES,Fees and Services,Corporate & Democratic Core
Swale Borough Council,29UM,21/09/2022,1200960,294.00,CLOUD 9 ASSIST LIMITED,08145753                 ,COMMUNITY SAFETY,CCTV Monitoring Service,Environmental and Regulatory Services
Swale Borough Council,29UM,21/09/2022,1200667,250.00,COMMUNITY HERITAGE EVENTS LTD,                         ,COMMUNITY SAFETY,Grants & Subscriptions,Central Services to the Public
Swale Borough Council,29UM,21/09/2022,1200922,375.00,DEDIGAMA HOLDINGS LTD TA THE ROYAL HOTEL,12601899                 ,HOUSING SERVICES,B & B - Homelessness Landlord Payments,Housing
Swale Borough Council,29UM,21/09/2022,1200872,775.00,HARTLIP VILLAGE HALL,                         ,COMMUNITY SAFETY,Grants & Subscriptions,Central Services to the Public
Swale Borough Council,29UM,21/09/2022,1200927,3593.61,KENT COUNTY COUNCIL (KCS),                         ,PROPERTY SERVICES,Electricity,Corporate & Democratic Core
Swale Borough Council,29UM,21/09/2022,1200929,1764.19,KENT COUNTY COUNCIL (KCS),                         ,CAR PARKS,Electricity,Highway and Transport Services
Swale Borough Council,29UM,21/09/2022,1200930,806.42,KENT COUNTY COUNCIL (KCS),                         ,CAR PARKS,Electricity,Highway and Transport Services
Swale Borough Council,29UM,21/09/2022,1200825,7370.00,LA SUPPORT LIMITED,11850540                 ,ENVIRONMENTAL RESPONSE TEAM,Fees and Services,Planning and Development Services
Swale Borough Council,29UM,21/09/2022,1200782,800.00,LEMAR LIMITED,04350292                 ,LEISURE & OPEN SPACES,General Maintenance,Cultural and Related Services
Swale Borough Council,29UM,21/09/2022,1200782,645.50,LEMAR LIMITED,04350292                 ,LEISURE & OPEN SPACES,General Maintenance,Cultural and Related Services
Swale Borough Council,29UM,21/09/2022,1200573,43465.00,LESSHOMELESS LIMITED,08458851                 ,HOUSING SERVICES,NL (Nightly Lets) - Homelessness Landlord Payments,Housing
Swale Borough Council,29UM,21/09/2022,1200635,82285.00,LINK PROPERTY GROUP,                         ,HOUSING SERVICES,NL (Nightly Lets) - Homelessness Landlord Payments,Housing
Swale Borough Council,29UM,21/09/2022,1200736,400.00,LOWER HALSTOW OVER 60S,                         ,COMMUNITY SAFETY,Grants & Subscriptions,Central Services to the Public
Swale Borough Council,29UM,21/09/2022,1200726,400.00,LYNSTED & KINGSDOWN PARISH COUNCIL,                         ,COMMUNITY SAFETY,Grants & Subscriptions,Central Services to the Public
Swale Borough Council,29UM,21/09/2022,1200443,2838.50,MAIDSTONE BOROUGH COUNCIL,                         ,CONTRACTS,Equipment Purchase,Environmental and Regulatory Services
Swale Borough Council,29UM,21/09/2022,1200443,12485.66,MAIDSTONE BOROUGH COUNCIL,                         ,CONTRACTS,Equipment Purchase,Environmental and Regulatory Services
Swale Borough Council,29UM,21/09/2022,1200917,16419.31,MATRIX SCM LTD,2227962                  ,HUMAN RESOURCES,Agency/Contract Staff,Internal Trading Cost Centres
Swale Borough Council,29UM,21/09/2022,1201002,950.00,REDACTED PERSONAL INFORMATION,                         ,HOUSING SERVICES,Homelessness  Prevention Services,Housing
Swale Borough Council,29UM,21/09/2022,1200311,14.00,O2 (UK) LTD,1743099                  ,COMMUNITY SAFETY,Cellphone,Environmental and Regulatory Services
Swale Borough Council,29UM,21/09/2022,1200311,7.00,O2 (UK) LTD,1743099                  ,COMMUNITY SAFETY,Cellphone,Environmental and Regulatory Services
Swale Borough Council,29UM,21/09/2022,1200311,14.00,O2 (UK) LTD,1743099                  ,COMMUNITY SAFETY,Cellphone,Environmental and Regulatory Services
Swale Borough Council,29UM,21/09/2022,1200311,7.00,O2 (UK) LTD,1743099                  ,REVENUE SERVICES,Cellphone,Central Services to the Public
Swale Borough Council,29UM,21/09/2022,1200311,7.00,O2 (UK) LTD,1743099                  ,PLANNING SERVICES,Cellphone,Planning and Development Services
Swale Borough Council,29UM,21/09/2022,1200311,14.00,O2 (UK) LTD,1743099                  ,ECONOMIC DEVELOPMENT,Cellphone,Planning and Development Services
Swale Borough Council,29UM,21/09/2022,1200311,21.00,O2 (UK) LTD,1743099                  ,EMERGENCY PLANNING,Cellphone,Central Services to the Public
Swale Borough Council,29UM,21/09/2022,1200311,16.00,O2 (UK) LTD,1743099                  ,SERVICE DELIVERY,Cellphone,Cultural and Related Services
Swale Borough Council,29UM,21/09/2022,1200311,57.00,O2 (UK) LTD,1743099                  ,HOUSING SERVICES,Cellphone,Housing
Swale Borough Council,29UM,21/09/2022,1200311,65.00,O2 (UK) LTD,1743099                  ,HOUSING SERVICES,Cellphone,Housing
Swale Borough Council,29UM,21/09/2022,1200311,71.00,O2 (UK) LTD,1743099                  ,HOUSING SERVICES,Cellphone,Housing
Swale Borough Council,29UM,21/09/2022,1200311,7.00,O2 (UK) LTD,1743099                  ,REVENUE SERVICES,Cellphone,Housing
Swale Borough Council,29UM,21/09/2022,1200311,21.00,O2 (UK) LTD,1743099                  ,LICENCING,Cellphone,Internal Trading Cost Centres
Swale Borough Council,29UM,21/09/2022,1200311,28.00,O2 (UK) LTD,1743099                  ,MKS LEGAL SERVICES,Cellphone,Internal Trading Cost Centres
Swale Borough Council,29UM,21/09/2022,1200311,7.00,O2 (UK) LTD,1743099                  ,PROPERTY SERVICES,Cellphone,Internal Trading Cost Centres
Swale Borough Council,29UM,21/09/2022,1200311,60.00,O2 (UK) LTD,1743099                  ,PROPERTY SERVICES,Cellphone,Internal Trading Cost Centres
Swale Borough Council,29UM,21/09/2022,1200311,14.00,O2 (UK) LTD,1743099                  ,COMMUNITY SAFETY,Cellphone,Internal Trading Cost Centres
Swale Borough Council,29UM,21/09/2022,1200311,7.00,O2 (UK) LTD,1743099                  ,ECONOMY & COMMUNITIES,Cellphone,Internal Trading Cost Centres
Swale Borough Council,29UM,21/09/2022,1200311,14.00,O2 (UK) LTD,1743099                  ,TOURISM & SPORTS DEVELOPMENT,Cellphone,Internal Trading Cost Centres
Swale Borough Council,29UM,21/09/2022,1200311,14.00,O2 (UK) LTD,1743099                  ,ECONOMIC DEVELOPMENT,Cellphone,Internal Trading Cost Centres
Swale Borough Council,29UM,21/09/2022,1200311,7.00,O2 (UK) LTD,1743099                  ,SERVICE DELIVERY,Cellphone,Internal Trading Cost Centres
Swale Borough Council,29UM,21/09/2022,1200311,42.00,O2 (UK) LTD,1743099                  ,CONTRACTS,Cellphone,Internal Trading Cost Centres
Swale Borough Council,29UM,21/09/2022,1200311,62.00,O2 (UK) LTD,1743099                  ,ENVIRONMENTAL RESPONSE TEAM,Cellphone,Internal Trading Cost Centres
Swale Borough Council,29UM,21/09/2022,1200311,38.00,O2 (UK) LTD,1743099                  ,ENVIRONMENTAL RESPONSE TEAM,Cellphone,Internal Trading Cost Centres
Swale Borough Council,29UM,21/09/2022,1200311,7.00,O2 (UK) LTD,1743099                  ,CONTRACTS,Cellphone,Internal Trading Cost Centres
Swale Borough Council,29UM,21/09/2022,1200311,7.00,O2 (UK) LTD,1743099                  ,PLANNING SERVICES,Cellphone,Internal Trading Cost Centres
Swale Borough Council,29UM,21/09/2022,1200311,77.00,O2 (UK) LTD,1743099                  ,LEISURE & OPEN SPACES,Cellphone,Internal Trading Cost Centres
Swale Borough Council,29UM,21/09/2022,1200311,7.00,O2 (UK) LTD,1743099                  ,CHIEF EXECUTIVE,Cellphone,Internal Trading Cost Centres
Swale Borough Council,29UM,21/09/2022,1200311,7.00,O2 (UK) LTD,1743099                  ,DIRECTOR OF RESOURCES,Cellphone,Internal Trading Cost Centres
Swale Borough Council,29UM,21/09/2022,1200311,7.00,O2 (UK) LTD,1743099                  ,DIRECTOR OF NEIGHBOURHOODS AND REGENERATION,Cellphone,Internal Trading Cost Centres
Swale Borough Council,29UM,21/09/2022,1200311,14.00,O2 (UK) LTD,1743099                  ,COMMISSIONING & CUSTOMER CONTACT,Cellphone,Internal Trading Cost Centres
Swale Borough Council,29UM,21/09/2022,1200311,8.34,O2 (UK) LTD,1743099                  ,COMMISSIONING & CUSTOMER CONTACT,Cellphone,Internal Trading Cost Centres
Swale Borough Council,29UM,21/09/2022,1200311,7.00,O2 (UK) LTD,1743099                  ,POLICY,Cellphone,Internal Trading Cost Centres
Swale Borough Council,29UM,21/09/2022,1200311,14.00,O2 (UK) LTD,1743099                  ,COMMUNICATIONS,Cellphone,Internal Trading Cost Centres
Swale Borough Council,29UM,21/09/2022,1200311,7.00,O2 (UK) LTD,1743099                  ,PROPERTY SERVICES,Cellphone,Corporate & Democratic Core
Swale Borough Council,29UM,21/09/2022,1200311,27.00,O2 (UK) LTD,1743099                  ,CAR PARKS,Cellphone,Highway and Transport Services
Swale Borough Council,29UM,21/09/2022,1200311,7.00,O2 (UK) LTD,1743099                  ,LEISURE & OPEN SPACES,Cellphone,Cultural and Related Services
Swale Borough Council,29UM,21/09/2022,1200311,7.00,O2 (UK) LTD,1743099                  ,LEISURE & OPEN SPACES,Cellphone,Cultural and Related Services
Swale Borough Council,29UM,21/09/2022,1200311,3.30,O2 (UK) LTD,1743099                  ,LEISURE & OPEN SPACES,Cellphone,Cultural and Related Services
Swale Borough Council,29UM,21/09/2022,1200311,49.00,O2 (UK) LTD,1743099                  ,HOUSING SERVICES,Cellphone,Housing
Swale Borough Council,29UM,21/09/2022,1200311,15.15,O2 (UK) LTD,1743099                  ,ENVIRONMENTAL RESPONSE TEAM,Cellphone,Environmental and Regulatory Services
Swale Borough Council,29UM,21/09/2022,1200311,11.00,O2 (UK) LTD,1743099                  ,COMMUNITY SAFETY,Cellphone,Cultural and Related Services
Swale Borough Council,29UM,21/09/2022,1200311,42.00,O2 (UK) LTD,1743099                  ,HOUSING SERVICES,Cellphone,Housing
Swale Borough Council,29UM,21/09/2022,1200465,14.00,O2 (UK) LTD,1743099                  ,COMMUNITY SAFETY,Cellphone,Environmental and Regulatory Services
Swale Borough Council,29UM,21/09/2022,1200465,7.00,O2 (UK) LTD,1743099                  ,COMMUNITY SAFETY,Cellphone,Environmental and Regulatory Services
Swale Borough Council,29UM,21/09/2022,1200465,14.00,O2 (UK) LTD,1743099                  ,COMMUNITY SAFETY,Cellphone,Environmental and Regulatory Services
Swale Borough Council,29UM,21/09/2022,1200465,7.00,O2 (UK) LTD,1743099                  ,REVENUE SERVICES,Cellphone,Central Services to the Public
Swale Borough Council,29UM,21/09/2022,1200465,7.00,O2 (UK) LTD,1743099                  ,PLANNING SERVICES,Cellphone,Planning and Development Services
Swale Borough Council,29UM,21/09/2022,1200465,14.00,O2 (UK) LTD,1743099                  ,ECONOMIC DEVELOPMENT,Cellphone,Planning and Development Services
Swale Borough Council,29UM,21/09/2022,1200465,21.00,O2 (UK) LTD,1743099                  ,EMERGENCY PLANNING,Cellphone,Central Services to the Public
Swale Borough Council,29UM,21/09/2022,1200465,16.00,O2 (UK) LTD,1743099                  ,SERVICE DELIVERY,Cellphone,Cultural and Related Services
Swale Borough Council,29UM,21/09/2022,1200465,57.00,O2 (UK) LTD,1743099                  ,HOUSING SERVICES,Cellphone,Housing
Swale Borough Council,29UM,21/09/2022,1200465,65.00,O2 (UK) LTD,1743099                  ,HOUSING SERVICES,Cellphone,Housing
Swale Borough Council,29UM,21/09/2022,1200465,71.00,O2 (UK) LTD,1743099                  ,HOUSING SERVICES,Cellphone,Housing
Swale Borough Council,29UM,21/09/2022,1200465,7.00,O2 (UK) LTD,1743099                  ,REVENUE SERVICES,Cellphone,Housing
Swale Borough Council,29UM,21/09/2022,1200465,21.00,O2 (UK) LTD,1743099                  ,LICENCING,Cellphone,Internal Trading Cost Centres
Swale Borough Council,29UM,21/09/2022,1200465,28.00,O2 (UK) LTD,1743099                  ,MKS LEGAL SERVICES,Cellphone,Internal Trading Cost Centres
Swale Borough Council,29UM,21/09/2022,1200465,7.00,O2 (UK) LTD,1743099                  ,PROPERTY SERVICES,Cellphone,Internal Trading Cost Centres
Swale Borough Council,29UM,21/09/2022,1200465,60.00,O2 (UK) LTD,1743099                  ,PROPERTY SERVICES,Cellphone,Internal Trading Cost Centres
Swale Borough Council,29UM,21/09/2022,1200465,14.00,O2 (UK) LTD,1743099                  ,COMMUNITY SAFETY,Cellphone,Internal Trading Cost Centres
Swale Borough Council,29UM,21/09/2022,1200465,7.00,O2 (UK) LTD,1743099                  ,ECONOMY & COMMUNITIES,Cellphone,Internal Trading Cost Centres
Swale Borough Council,29UM,21/09/2022,1200465,14.00,O2 (UK) LTD,1743099                  ,TOURISM & SPORTS DEVELOPMENT,Cellphone,Internal Trading Cost Centres
Swale Borough Council,29UM,21/09/2022,1200465,14.00,O2 (UK) LTD,1743099                  ,ECONOMIC DEVELOPMENT,Cellphone,Internal Trading Cost Centres
Swale Borough Council,29UM,21/09/2022,1200465,7.00,O2 (UK) LTD,1743099                  ,SERVICE DELIVERY,Cellphone,Internal Trading Cost Centres
Swale Borough Council,29UM,21/09/2022,1200465,42.00,O2 (UK) LTD,1743099                  ,CONTRACTS,Cellphone,Internal Trading Cost Centres
Swale Borough Council,29UM,21/09/2022,1200465,62.00,O2 (UK) LTD,1743099                  ,ENVIRONMENTAL RESPONSE TEAM,Cellphone,Internal Trading Cost Centres
Swale Borough Council,29UM,21/09/2022,1200465,38.00,O2 (UK) LTD,1743099                  ,ENVIRONMENTAL RESPONSE TEAM,Cellphone,Internal Trading Cost Centres
Swale Borough Council,29UM,21/09/2022,1200465,7.00,O2 (UK) LTD,1743099                  ,CONTRACTS,Cellphone,Internal Trading Cost Centres
Swale Borough Council,29UM,21/09/2022,1200465,7.00,O2 (UK) LTD,1743099                  ,PLANNING SERVICES,Cellphone,Internal Trading Cost Centres
Swale Borough Council,29UM,21/09/2022,1200465,77.00,O2 (UK) LTD,1743099                  ,LEISURE & OPEN SPACES,Cellphone,Internal Trading Cost Centres
Swale Borough Council,29UM,21/09/2022,1200465,7.00,O2 (UK) LTD,1743099                  ,CHIEF EXECUTIVE,Cellphone,Internal Trading Cost Centres
Swale Borough Council,29UM,21/09/2022,1200465,7.00,O2 (UK) LTD,1743099                  ,DIRECTOR OF RESOURCES,Cellphone,Internal Trading Cost Centres
Swale Borough Council,29UM,21/09/2022,1200465,7.00,O2 (UK) LTD,1743099                  ,DIRECTOR OF NEIGHBOURHOODS AND REGENERATION,Cellphone,Internal Trading Cost Centres
Swale Borough Council,29UM,21/09/2022,1200465,14.00,O2 (UK) LTD,1743099                  ,COMMISSIONING & CUSTOMER CONTACT,Cellphone,Internal Trading Cost Centres
Swale Borough Council,29UM,21/09/2022,1200465,15.33,O2 (UK) LTD,1743099                  ,COMMISSIONING & CUSTOMER CONTACT,Cellphone,Internal Trading Cost Centres
Swale Borough Council,29UM,21/09/2022,1200465,7.00,O2 (UK) LTD,1743099                  ,POLICY,Cellphone,Internal Trading Cost Centres
Swale Borough Council,29UM,21/09/2022,1200465,14.00,O2 (UK) LTD,1743099                  ,COMMUNICATIONS,Cellphone,Internal Trading Cost Centres
Swale Borough Council,29UM,21/09/2022,1200465,7.00,O2 (UK) LTD,1743099                  ,PROPERTY SERVICES,Cellphone,Corporate & Democratic Core
Swale Borough Council,29UM,21/09/2022,1200465,27.00,O2 (UK) LTD,1743099                  ,MULTISTOREY CAR PARK,Cellphone,Highway and Transport Services
Swale Borough Council,29UM,21/09/2022,1200465,7.00,O2 (UK) LTD,1743099                  ,LEISURE & OPEN SPACES,Cellphone,Cultural and Related Services
Swale Borough Council,29UM,21/09/2022,1200465,7.00,O2 (UK) LTD,1743099                  ,LEISURE & OPEN SPACES,Cellphone,Cultural and Related Services
Swale Borough Council,29UM,21/09/2022,1200465,49.00,O2 (UK) LTD,1743099                  ,HOUSING SERVICES,Cellphone,Housing
Swale Borough Council,29UM,21/09/2022,1200465,14.00,O2 (UK) LTD,1743099                  ,ENVIRONMENTAL RESPONSE TEAM,Cellphone,Environmental and Regulatory Services
Swale Borough Council,29UM,21/09/2022,1200465,11.00,O2 (UK) LTD,1743099                  ,COMMUNITY SAFETY,Cellphone,Cultural and Related Services
Swale Borough Council,29UM,21/09/2022,1200465,42.00,O2 (UK) LTD,1743099                  ,HOUSING SERVICES,Cellphone,Housing
Swale Borough Council,29UM,21/09/2022,1200830,9250.00,ODGERS INTERIM,                         ,PLANNING SERVICES,Agency/Contract Staff,Internal Trading Cost Centres
Swale Borough Council,29UM,21/09/2022,1200578,45609.00,PARAMOUNT INDEPENDENT PROPERTY SERVICES,                         ,HOUSING SERVICES,NL (Nightly Lets) - Homelessness Landlord Payments,Housing
Swale Borough Council,29UM,21/09/2022,1200679,47743.00,PARAMOUNT INDEPENDENT PROPERTY SERVICES,                         ,HOUSING SERVICES,NL (Nightly Lets) - Homelessness Landlord Payments,Housing
Swale Borough Council,29UM,21/09/2022,1200680,35821.00,PARAMOUNT INDEPENDENT PROPERTY SERVICES,                         ,HOUSING SERVICES,NL (Nightly Lets) - Homelessness Landlord Payments,Housing
Swale Borough Council,29UM,21/09/2022,1200681,47659.00,PARAMOUNT INDEPENDENT PROPERTY SERVICES,                         ,HOUSING SERVICES,NL (Nightly Lets) - Homelessness Landlord Payments,Housing
Swale Borough Council,29UM,21/09/2022,1200795,1615.00,PESCOT LTD T\AS PROCOM COMMUNICATION SERVICES,                         ,COMMUNITY SAFETY,Fees and Services,Environmental and Regulatory Services
Swale Borough Council,29UM,21/09/2022,1200127,1680.00,PROWIRED ELECTRICAL LIMITED,08035921                 ,ECONOMY & COMMUNITIES,Capitalised Fees And Charges,Not used in this Structure
Swale Borough Council,29UM,21/09/2022,1200762,927.96,REED TALENT SOLUTIONS LTD,11875450                 ,PLANNING SERVICES,Fees and Services,Planning and Development Services
Swale Borough Council,29UM,21/09/2022,1200763,5225.00,REED TALENT SOLUTIONS LTD,11875450                 ,PLANNING SERVICES,Fees and Services,Planning and Development Services
Swale Borough Council,29UM,21/09/2022,1200870,522.91,ROYAL MAIL GROUP LTD,4138203                  ,DEMOCRATIC & ELECTORAL SERVICES,Postage,Central Services to the Public
Swale Borough Council,29UM,21/09/2022,1200597,6500.35,SCOTTISH WATER BUSINESS STREAM LTD,SC294924                 ,CONTRACTS,Water - Metered,Environmental and Regulatory Services
Swale Borough Council,29UM,21/09/2022,1200902,4000.00,SHEERNESS TOWN TEAM,                         ,ECONOMIC DEVELOPMENT,Grants & Subscriptions,Planning and Development Services
Swale Borough Council,29UM,21/09/2022,1200668,1350.00,SHEPPEY MATTERS,3946296                  ,COMMUNITY SAFETY,Grants & Subscriptions,Central Services to the Public
Swale Borough Council,29UM,21/09/2022,1200772,727.50,SODEXO MOTIVATION SOLUTIONS UK LTD,02680629                 ,HUMAN RESOURCES,Fees and Services,Corporate & Democratic Core
Swale Borough Council,29UM,21/09/2022,1200785,2255.50,SOLON SECURITY,03065075                 ,COMMUNITY SAFETY,Fees and Services,Planning and Development Services
Swale Borough Council,29UM,21/09/2022,1200881,1884.61,SOUTHERN ELECTRIC,                         ,LEISURE & OPEN SPACES,Electricity,Cultural and Related Services
Swale Borough Council,29UM,21/09/2022,1201003,1360.00,SPICER HAART RESIDENTIAL LETTINGS,                         ,HOUSING SERVICES,Homelessness  Prevention Services,Housing
Swale Borough Council,29UM,21/09/2022,1200797,11520.60,SWALE COMMUNITY LEISURE LIMITED,31132R                   ,LEISURE & OPEN SPACES,Procurement Contracts Only,Cultural and Related Services
Swale Borough Council,29UM,21/09/2022,1200701,2500.00,THE FAMILY FOOD BANK,                         ,COMMUNITY SAFETY,Grants & Subscriptions,Public Health
Swale Borough Council,29UM,21/09/2022,1200754,760.75,THE OYSTER PARTNERSHIP,05020374                 ,PLANNING SERVICES,Agency/Contract Staff,Internal Trading Cost Centres
Swale Borough Council,29UM,21/09/2022,1200905,1300.00,THE OYSTER PARTNERSHIP,05020374                 ,FINANCIAL SERVICES,Agency/Contract Staff,Internal Trading Cost Centres
Swale Borough Council,29UM,21/09/2022,1200906,325.00,THE OYSTER PARTNERSHIP,05020374                 ,FINANCIAL SERVICES,Agency/Contract Staff,Internal Trading Cost Centres
Swale Borough Council,29UM,21/09/2022,1200840,903.00,TMP (UK) LTD,5648039                  ,DEMOCRATIC & ELECTORAL SERVICES,Recruitment Adverts - Staff,Internal Trading Cost Centres
Swale Borough Council,29UM,21/09/2022,1200980,2936.60,TMP (UK) LTD,5648039                  ,PLANNING SERVICES,Recruitment Adverts - Staff,Internal Trading Cost Centres
Swale Borough Council,29UM,21/09/2022,1200734,250.00,TRINITY FENCING CIC,                         ,COMMUNITY SAFETY,Grants & Subscriptions,Central Services to the Public
Swale Borough Council,29UM,21/09/2022,1200733,600.00,UPCHURCH PARISH COUNCIL,                         ,COMMUNITY SAFETY,Grants & Subscriptions,Central Services to the Public
Swale Borough Council,29UM,21/09/2022,1200808,855.00,VIVID RESOURCING LIMITED,06459262                 ,ENVIRONMENTAL RESPONSE TEAM,Agency/Contract Staff,Internal Trading Cost Centres
Swale Borough Council,29UM,21/09/2022,1200897,985.13,VIVID RESOURCING LIMITED,06459262                 ,MKS LEGAL SERVICES,Agency/Contract Staff,Internal Trading Cost Centres
Swale Borough Council,29UM,21/09/2022,1200898,793.76,VIVID RESOURCING LIMITED,06459262                 ,MKS LEGAL SERVICES,Agency/Contract Staff,Internal Trading Cost Centres
Swale Borough Council,29UM,21/09/2022,1200899,855.00,VIVID RESOURCING LIMITED,06459262                 ,MKS LEGAL SERVICES,Agency/Contract Staff,Internal Trading Cost Centres
Swale Borough Council,29UM,21/09/2022,1200815,495.35,VR SANI-CO LTD,3588359                  ,CONTRACTS,Hygiene Service Contracts,Environmental and Regulatory Services
Swale Borough Council,29UM,21/09/2022,1200740,4312.50,WASTE CONSULTING LLP,OC355629                 ,CONTRACTS,Consultancy/Specialist Advice,Environmental and Regulatory Services
Swale Borough Council,29UM,28/09/2022,1201207,1443.59,ACORN MAINTENANCE SERVICES,3546898                  ,HOUSING SERVICES,Housing Renovation Grants,Not used in this Structure
Swale Borough Council,29UM,28/09/2022,1201202,5505.00,ASCENDIT LIFTS LTD,3493530                  ,HOUSING SERVICES,Housing Renovation Grants,Not used in this Structure
Swale Borough Council,29UM,28/09/2022,1200838,123961.97,BLENWOOD LTD,4383277                  ,LEISURE & OPEN SPACES,Grounds Maint Suspense,Cultural and Related Services
Swale Borough Council,29UM,28/09/2022,1200627,2415.32,BOTTOMLINE TECHNOLOGIES LIMITED,08098450                 ,FINANCIAL SERVICES,Computer Equipment & Materials,Internal Trading Cost Centres
Swale Borough Council,29UM,28/09/2022,1200750,352.80,CD SUPPLIES LTD,                         ,LEISURE & OPEN SPACES,Equipment Purchase,Cultural and Related Services
Swale Borough Council,29UM,28/09/2022,1200955,5115.60,DESIGN & BUILD,                         ,HOUSING SERVICES,LIS - Landlord Payments (new in 2018),Housing
Swale Borough Council,29UM,28/09/2022,1201203,5207.40,DOLPHIN STAIRLIFTS (KENT),04181846                 ,HOUSING SERVICES,Housing Renovation Grants,Not used in this Structure
Swale Borough Council,29UM,28/09/2022,1201009,1184.66,EDEN PARK (STMS) LTD,06116389                 ,LEISURE & OPEN SPACES,Equipment Purchase,Cultural and Related Services
Swale Borough Council,29UM,28/09/2022,1200748,3250.00,ELITE ARBORISTS LTD,09486869                 ,LEISURE & OPEN SPACES,Tree Maintenance,Cultural and Related Services
Swale Borough Council,29UM,28/09/2022,1201017,1921.36,ELLIE'S ANGELS CIC,                         ,DEMOCRATIC & ELECTORAL SERVICES,Grants & Subscriptions,Corporate & Democratic Core
Swale Borough Council,29UM,28/09/2022,1200606,860.00,EVOLVE AMS UK LTD,08819378                 ,HOUSING SERVICES,Staying Put small repairs (contractors),Housing
Swale Borough Council,29UM,28/09/2022,1200607,750.00,EVOLVE AMS UK LTD,08819378                 ,HOUSING SERVICES,Staying Put small repairs (contractors),Housing
Swale Borough Council,29UM,28/09/2022,1200903,5456.00,FIRST STOP HOUSING SOLUTION LTD,                         ,HOUSING SERVICES,NL (Nightly Lets) - Homelessness Landlord Payments,Housing
Swale Borough Council,29UM,28/09/2022,1201208,5058.16,GREGORY (KENT) LTD,08056242                 ,HOUSING SERVICES,Housing Renovation Grants,Not used in this Structure
Swale Borough Council,29UM,28/09/2022,1201205,2113.42,GREY & CO RENOVATION LTD,13988401                 ,HOUSING SERVICES,Housing Renovation Grants,Not used in this Structure
Swale Borough Council,29UM,28/09/2022,1201206,2540.00,HIGHER ELEVATION LTD,4078005                  ,HOUSING SERVICES,Housing Renovation Grants,Not used in this Structure
Swale Borough Council,29UM,28/09/2022,1201110,1513.20,HOUND ENVELOPES LTD,4802560                  ,REVENUE SERVICES,Stationery,Central Services to the Public
Swale Borough Council,29UM,28/09/2022,1201110,814.80,HOUND ENVELOPES LTD,4802560                  ,REVENUE SERVICES,Stationery,Housing
Swale Borough Council,29UM,28/09/2022,1201204,4019.72,HUBBARD & HOUGHTON CONSTRUCTION LTD,                         ,HOUSING SERVICES,Housing Renovation Grants,Not used in this Structure
Swale Borough Council,29UM,28/09/2022,1201129,888.00,INFORM CPI LTD,                         ,REVENUE SERVICES,NNDR Additional Rateable Values,Central Services to the Public
Swale Borough Council,29UM,28/09/2022,1200984,3900.00,REDACTED PERSONAL INFORMATION,                         ,HOUSING SERVICES,LIS - Landlord Payments (new in 2018),Housing
Swale Borough Council,29UM,28/09/2022,1201120,2040.48,KEMSLEY COMMUNITY CENTRE,                         ,DEMOCRATIC & ELECTORAL SERVICES,Grants & Subscriptions,Corporate & Democratic Core
Swale Borough Council,29UM,28/09/2022,1200618,2306.50,KENT ACCOMMODATION LTD,12900140                 ,HOUSING SERVICES,NL (Nightly Lets) - Homelessness Landlord Payments,Housing
Swale Borough Council,29UM,28/09/2022,1200940,1575.00,KENT COUNTY COUNCIL,                         ,PROCUREMENT,Fees and Services,Internal Trading Cost Centres
Swale Borough Council,29UM,28/09/2022,1200614,775.00,KENT SUPPORTED HOUSING,12580774                 ,HOUSING SERVICES,NL (Nightly Lets) - Homelessness Landlord Payments,Housing
Swale Borough Council,29UM,28/09/2022,1201182,250.00,KIRKMAN & JOURDAIN LTD,01766240                 ,SERVICE DELIVERY,Maintenance - Grounds,Cultural and Related Services
Swale Borough Council,29UM,28/09/2022,1201100,400.00,LEMAR LIMITED,04350292                 ,CAR PARKS,Maintenance - Grounds,Highway and Transport Services
Swale Borough Council,29UM,28/09/2022,1201100,25.00,LEMAR LIMITED,04350292                 ,CAR PARKS,Maintenance - Grounds,Highway and Transport Services
Swale Borough Council,29UM,28/09/2022,1201104,600.00,LEMAR LIMITED,04350292                 ,CAR PARKS,Maintenance - Grounds,Highway and Transport Services
Swale Borough Council,29UM,28/09/2022,1201104,281.25,LEMAR LIMITED,04350292                 ,CAR PARKS,Maintenance - Grounds,Highway and Transport Services
Swale Borough Council,29UM,28/09/2022,1200919,1043.00,MAGEES GUESTHOUSE,                         ,HOUSING SERVICES,B & B - Homelessness Landlord Payments,Housing
Swale Borough Council,29UM,28/09/2022,1201112,1267.00,MAGEES GUESTHOUSE,                         ,HOUSING SERVICES,B & B - Homelessness Landlord Payments,Housing
Swale Borough Council,29UM,28/09/2022,1200659,2448.79,MAIDSTONE BOROUGH COUNCIL,                         ,HUMAN RESOURCES,Computer Equipment & Materials,Internal Trading Cost Centres
Swale Borough Council,29UM,28/09/2022,1200659,12625.00,MAIDSTONE BOROUGH COUNCIL,                         ,MKS ICT,Computer Equipment & Materials,Internal Trading Cost Centres
Swale Borough Council,29UM,28/09/2022,1200659,10893.52,MAIDSTONE BOROUGH COUNCIL,                         ,MKS ICT,Computer Equipment & Materials,Internal Trading Cost Centres
Swale Borough Council,29UM,28/09/2022,1201220,939798.00,MAIDSTONE BOROUGH COUNCIL - DT,                         ,FINANCIAL SERVICES,Tariff to Gvt,Taxation and Non-Specific Grant Income
Swale Borough Council,29UM,28/09/2022,1201156,1044.90,MARTIN CRANFIELD ASSOCIATES LIMITED,05210576                 ,MKS ENVIRONMENTAL SERVICES,Private Contractors,Environmental and Regulatory Services
Swale Borough Council,29UM,28/09/2022,1201115,10226.96,MATRIX SCM LTD,2227962                  ,HUMAN RESOURCES,Agency/Contract Staff,Internal Trading Cost Centres
Swale Borough Council,29UM,28/09/2022,1201111,4323.06,MILTON CREEK COUNTRY PARK TRUST,                         ,DEMOCRATIC & ELECTORAL SERVICES,Grants & Subscriptions,Corporate & Democratic Core
Swale Borough Council,29UM,28/09/2022,1201016,3841.71,MILTON REGIS SOCIETY,                         ,DEMOCRATIC & ELECTORAL SERVICES,Grants & Subscriptions,Corporate & Democratic Core
Swale Borough Council,29UM,28/09/2022,1200844,7440.00,MONITOR CLEANING SERVICES LTD,02526388                 ,CONTRACTS,Private Contractors,Environmental and Regulatory Services
Swale Borough Council,29UM,28/09/2022,1200845,395.00,MONITOR CLEANING SERVICES LTD,02526388                 ,CONTRACTS,Private Contractors,Environmental and Regulatory Services
Swale Borough Council,29UM,28/09/2022,1200954,3806.24,MORE INFO LTD,                         ,HOUSING SERVICES,LIS - Landlord Payments (new in 2018),Housing
Swale Borough Council,29UM,28/09/2022,1201123,368.45,MPS MARKETING SERVICES LIMITED,6360656                  ,DEMOCRATIC & ELECTORAL SERVICES,Fees and Services,Central Services to the Public
Swale Borough Council,29UM,28/09/2022,1201124,3100.54,MPS MARKETING SERVICES LIMITED,6360656                  ,DEMOCRATIC & ELECTORAL SERVICES,Fees and Services,Central Services to the Public
Swale Borough Council,29UM,28/09/2022,1201125,426.14,MPS MARKETING SERVICES LIMITED,6360656                  ,DEMOCRATIC & ELECTORAL SERVICES,Fees and Services,Central Services to the Public
Swale Borough Council,29UM,28/09/2022,1200956,364.00,MTS CLEANSING SERVICES LTD,2045340                  ,LEISURE & OPEN SPACES,Clearing Cesspools,Cultural and Related Services
Swale Borough Council,29UM,28/09/2022,1201007,2496.00,NAGELS UK LIMITED,3695705                  ,CAR PARKS,Car Park Machine Tickets,Highway and Transport Services
Swale Borough Council,29UM,28/09/2022,1201132,1085.00,NEW LEAF SUPPORT LTD,                         ,HOUSING SERVICES,NL (Nightly Lets) - Homelessness Landlord Payments,Housing
Swale Borough Council,29UM,28/09/2022,1201133,1147.00,NEW LEAF SUPPORT LTD,                         ,HOUSING SERVICES,NL (Nightly Lets) - Homelessness Landlord Payments,Housing
Swale Borough Council,29UM,28/09/2022,1201134,1085.00,NEW LEAF SUPPORT LTD,                         ,HOUSING SERVICES,NL (Nightly Lets) - Homelessness Landlord Payments,Housing
Swale Borough Council,29UM,28/09/2022,1201135,1147.00,NEW LEAF SUPPORT LTD,                         ,HOUSING SERVICES,NL (Nightly Lets) - Homelessness Landlord Payments,Housing
Swale Borough Council,29UM,28/09/2022,1200934,420.00,REDACTED PERSONAL INFORMATION,                         ,COMMUNITY SAFETY,Maintenance - Grounds,Environmental and Regulatory Services
Swale Borough Council,29UM,28/09/2022,1201086,296.63,NPOWER,                         ,CAR PARKS,Electricity,Highway and Transport Services
Swale Borough Council,29UM,28/09/2022,1201190,500.00,OASIS ACADEMY ISLE OF SHEPPEY,                         ,COMMUNITY SAFETY,Grants & Subscriptions,Central Services to the Public
Swale Borough Council,29UM,28/09/2022,1201170,14696.84,PARK NOW LIMITED,03151938                 ,CAR PARKS,Fees - Licence,Highway and Transport Services
Swale Borough Council,29UM,28/09/2022,1201161,490.00,PERKINS HOMES,                         ,HOUSING SERVICES,NL (Nightly Lets) - Homelessness Landlord Payments,Housing
Swale Borough Council,29UM,28/09/2022,1201162,560.00,PERKINS HOMES,                         ,HOUSING SERVICES,NL (Nightly Lets) - Homelessness Landlord Payments,Housing
Swale Borough Council,29UM,28/09/2022,1201146,265.00,PESCOT LTD T\AS PROCOM COMMUNICATION SERVICES,                         ,COMMUNITY SAFETY,CCTV Monitoring Service,Environmental and Regulatory Services
Swale Borough Council,29UM,28/09/2022,1201139,750.00,POTTER RAPPER LTD,11729518                 ,ECONOMIC DEVELOPMENT,Advertising & Promotion,Planning and Development Services
Swale Borough Council,29UM,28/09/2022,1200639,929.24,PREMIER INN (ATOS) DT,                         ,HOUSING SERVICES,B & B - Homelessness Landlord Payments,Housing
Swale Borough Council,29UM,28/09/2022,1200621,8953.00,PREMIER PROPERTY PROVIDERS LTD,                         ,HOUSING SERVICES,NL (Nightly Lets) - Homelessness Landlord Payments,Housing
Swale Borough Council,29UM,28/09/2022,1201232,40.00,RBS PURCHASING CARD (DT) - ICO,                         ,RAINBOW HOMES,Fees and Services,Housing
Swale Borough Council,29UM,28/09/2022,1201232,304.50,RBS PURCHASING CARD (DT) - CIPS,,HUMAN RESOURCES,Training - Courses,Corporate & Democratic Core
Swale Borough Council,29UM,28/09/2022,1201232,59.76,RBS PURCHASING CARD (DT) - INSTANT PRINT,                         ,COMMUNITY SAFETY,CCTV Monitoring Service,Environmental and Regulatory Services
Swale Borough Council,29UM,28/09/2022,1201232,93.92,RBS PURCHASING CARD (DT) - COPSHOP UK,                         ,COMMUNITY SAFETY,Equipment Purchase,Environmental and Regulatory Services
Swale Borough Council,29UM,28/09/2022,1201232,19.92,RBS PURCHASING CARD (DT) - AMAZON,                         ,LICENCING,Stationery,Environmental and Regulatory Services
Swale Borough Council,29UM,28/09/2022,1201233,78.60,RBS PURCHASING CARD (DT) - NAMECHEAP,,MKS ICT,Computer Equipment & Materials,Internal Trading Cost Centres
Swale Borough Council,29UM,28/09/2022,1201233,30.55,RBS PURCHASING CARD (DT) - NAMECHEAP,,MKS ICT,Computer Equipment & Materials,Internal Trading Cost Centres
Swale Borough Council,29UM,28/09/2022,1201234,10.73,RBS PURCHASING CARD (DT) - AMAZON,,MKS LEGAL SERVICES,Stationery,Internal Trading Cost Centres
Swale Borough Council,29UM,28/09/2022,1201234,-45.82,RBS PURCHASING CARD (DT) - AMAZON,,MKS LEGAL SERVICES,Equipment Purchase,Internal Trading Cost Centres
Swale Borough Council,29UM,28/09/2022,1201234,140.29,RBS PURCHASING CARD (DT) - HEMPSTEAD HOUSE,,MKS LEGAL SERVICES,Catering Provisions,Internal Trading Cost Centres
Swale Borough Council,29UM,28/09/2022,1201235,39.90,RBS PURCHASING CARD (DT) - CUPS DIRECT,,PROPERTY SERVICES,Equipment Purchase,Corporate & Democratic Core
Swale Borough Council,29UM,28/09/2022,1201235,10.00,RBS PURCHASING CARD (DT) - GIFGAF,,PROPERTY SERVICES,Cellphone,Internal Trading Cost Centres
Swale Borough Council,29UM,28/09/2022,1201236,57.49,RBS PURCHASING CARD (DT) - TRAVELODGE,                         ,HOUSING SERVICES,B & B - Homelessness Landlord Payments,Housing
Swale Borough Council,29UM,28/09/2022,1201236,154.17,RBS PURCHASING CARD (DT) - ARGOS,                         ,HOUSING SERVICES,Homelessness  Prevention Services,Housing
Swale Borough Council,29UM,28/09/2022,1201236,149.16,RBS PURCHASING CARD (DT) - CURRYS,                         ,HOUSING SERVICES,Homelessness  Prevention Services,Housing
Swale Borough Council,29UM,28/09/2022,1201236,203.97,RBS PURCHASING CARD (DT) - TRAVELODGE,                         ,HOUSING SERVICES,B & B - Homelessness Landlord Payments,Housing
Swale Borough Council,29UM,28/09/2022,1201236,73.99,RBS PURCHASING CARD (DT) - EBAY,                         ,HOUSING SERVICES,Homelessness  Prevention Services,Housing
Swale Borough Council,29UM,28/09/2022,1201236,186.66,RBS PURCHASING CARD (DT) - AO RETAIL,                         ,HOUSING SERVICES,Homelessness  Prevention Services,Housing
Swale Borough Council,29UM,28/09/2022,1201236,80.83,RBS PURCHASING CARD (DT) - ARGOS,                         ,HOUSING SERVICES,Homelessness  Prevention Services,Housing
Swale Borough Council,29UM,28/09/2022,1201237,61.18,RBS PURCHASING CARD (DT) - TRAVELODGE,,HOUSING SERVICES,B & B - Homelessness Landlord Payments,Housing
Swale Borough Council,29UM,28/09/2022,1201238,29.63,RBS PURCHASING CARD (DT) - GOOGLE CLOUD,                         ,COMMUNICATIONS,Computer Equipment & Materials,Internal Trading Cost Centres
Swale Borough Council,29UM,28/09/2022,1201238,434.73,RBS PURCHASING CARD (DT) - LINKEDIN,                         ,FINANCIAL SERVICES,Recruitment Adverts - Staff,Internal Trading Cost Centres
Swale Borough Council,29UM,28/09/2022,1201238,445.34,RBS PURCHASING CARD (DT) - LINKEDIN,                         ,FINANCIAL SERVICES,Recruitment Adverts - Staff,Internal Trading Cost Centres
Swale Borough Council,29UM,28/09/2022,1201238,69.58,RBS PURCHASING CARD (DT) - LINKEDIN,                         ,FINANCIAL SERVICES,Recruitment Adverts - Staff,Internal Trading Cost Centres
Swale Borough Council,29UM,28/09/2022,1199544,488.16,RUSSELL PLAY,SC162280                 ,LEISURE & OPEN SPACES,Equipment Purchase,Cultural and Related Services
Swale Borough Council,29UM,28/09/2022,1201226,9600.00,S.B.C. - ENERGY REBATE (DT),                         ,REVENUE SERVICES,Payments in Year,Ledger/Suspense Codes
Swale Borough Council,29UM,28/09/2022,1201227,23850.00,S.B.C. - ENERGY REBATE (DT),                         ,REVENUE SERVICES,Payments in Year,Ledger/Suspense Codes
Swale Borough Council,29UM,28/09/2022,1201228,15900.00,S.B.C. - ENERGY REBATE (DT),                         ,REVENUE SERVICES,Payments in Year,Ledger/Suspense Codes
Swale Borough Council,29UM,28/09/2022,1201119,1556.30,S/BOURNE CHRISTMAS LIGHTS & SLEIGH ROUNDS,                         ,DEMOCRATIC & ELECTORAL SERVICES,Grants & Subscriptions,Corporate & Democratic Core
Swale Borough Council,29UM,28/09/2022,1201151,42500.00,SEYMOORE PROPERTIES LIMITED,                         ,CAR PARKS,Rent,Highway and Transport Services
Swale Borough Council,29UM,28/09/2022,1201018,2785.97,SITTINGBOURNE AND KEMSLEY LIGHT RAILWAY,                         ,DEMOCRATIC & ELECTORAL SERVICES,Grants & Subscriptions,Corporate & Democratic Core
Swale Borough Council,29UM,28/09/2022,1201167,3508.80,SOCOTEC UK LIMITED,02880501                 ,MKS ENVIRONMENTAL SERVICES,Fees - Analysis / Monitoring,Environmental and Regulatory Services
Swale Borough Council,29UM,28/09/2022,1200967,1600.00,SONG SIGNING,                         ,COMMUNITY SAFETY,Grants & Subscriptions,Central Services to the Public
Swale Borough Council,29UM,28/09/2022,1200725,305.11,SOUTHERN COMMUNICATIONS LTD,1328040                  ,MKS ICT,Telephone,Corporate & Democratic Core
Swale Borough Council,29UM,28/09/2022,1200923,305.00,ST THOMAS TRAINING LTD,8879882                  ,COMMUNITY SAFETY,Fees and Services,Environmental and Regulatory Services
Swale Borough Council,29UM,28/09/2022,1200982,695.40,STUDENT MOVE & STORE,                         ,HOUSING SERVICES,Storage Expenses,Housing
Swale Borough Council,29UM,28/09/2022,1201019,2000.00,SWALE FOODBANK,                         ,COMMUNITY SAFETY,Grants & Subscriptions,Public Health
Swale Borough Council,29UM,28/09/2022,1201223,1450.00,SWALE PROPERTIES (KENT) LTD,                         ,HOUSING SERVICES,Homelessness  Prevention Services,Housing
Swale Borough Council,29UM,28/09/2022,1200619,11275.00,THE ACCOMMODATION TEAM LTD,                         ,HOUSING SERVICES,NL (Nightly Lets) - Homelessness Landlord Payments,Housing
Swale Borough Council,29UM,28/09/2022,1201020,2000.00,THE FAMILY FOOD BANK,                         ,COMMUNITY SAFETY,Grants & Subscriptions,Public Health
Swale Borough Council,29UM,28/09/2022,1201137,1434.00,TMP (UK) LTD,5648039                  ,PLANNING SERVICES,Recruitment Adverts - Staff,Internal Trading Cost Centres
Swale Borough Council,29UM,28/09/2022,1201138,1434.00,TMP (UK) LTD,5648039                  ,PLANNING SERVICES,Recruitment Adverts - Staff,Internal Trading Cost Centres
Swale Borough Council,29UM,28/09/2022,1200951,1820.00,TREVOR MULLER PLAYGROUND INSPECTIONS LTD,11531017                 ,LEISURE & OPEN SPACES,Equipment Maintenance,Cultural and Related Services
Swale Borough Council,29UM,28/09/2022,1200952,1820.00,TREVOR MULLER PLAYGROUND INSPECTIONS LTD,11531017                 ,LEISURE & OPEN SPACES,Equipment Maintenance,Cultural and Related Services
Swale Borough Council,29UM,28/09/2022,1200925,334.00,TRICO V.E. LTD SIGNAGE,                         ,SERVICE DELIVERY,Private Contractors - CIS,Highway and Transport Services
Swale Borough Council,29UM,28/09/2022,1200751,2088.54,TUNBRIDGE WELLS BOROUGH COUNCIL,                         ,MKS ICT,Telephone,Corporate & Democratic Core
Swale Borough Council,29UM,28/09/2022,1200989,-28.90,UNISON,                         ,HUMAN RESOURCES,Payroll - Unison Deductions Admin Charge,Corporate & Democratic Core
Swale Borough Council,29UM,28/09/2022,1201015,6930.00,VIBE COMMUNITY LIMITED,                         ,DEMOCRATIC & ELECTORAL SERVICES,Grants & Subscriptions,Corporate & Democratic Core
Swale Borough Council,29UM,28/09/2022,1201106,971.37,VIVID RESOURCING LIMITED,06459262                 ,MKS LEGAL SERVICES,Agency/Contract Staff,Internal Trading Cost Centres
Swale Borough Council,29UM,28/09/2022,1201107,793.76,VIVID RESOURCING LIMITED,06459262                 ,MKS LEGAL SERVICES,Agency/Contract Staff,Internal Trading Cost Centres
Swale Borough Council,29UM,28/09/2022,1201143,1100.00,WARD SECURITY TRAINING LIMITED,05999818                 ,COMMUNITY SAFETY,Fees and Services,Environmental and Regulatory Services
Swale Borough Council,29UM,28/09/2022,1201143,760.00,WARD SECURITY TRAINING LIMITED,05999818                 ,COMMUNITY SAFETY,Fees and Services,Environmental and Regulatory Services
Swale Borough Council,29UM,28/09/2022,1200979,610.00,WILLOW TREE HOME SOLUTIONS LTD,                         ,HOUSING SERVICES,Staying Put small repairs (contractors),Housing
Swale Borough Council,29UM,28/09/2022,1201154,440.00,WILLOW TREE HOME SOLUTIONS LTD,                         ,HOUSING SERVICES,Staying Put small repairs (contractors),Housing
Swale Borough Council,29UM,28/09/2022,1200891,850.00,WYNSDALE WASTE MANAGEMENT LTD,07837119                 ,HOUSING SERVICES,Staying Put small repairs (contractors),Housing
Swale Borough Council,29UM,28/09/2022,1200892,995.00,WYNSDALE WASTE MANAGEMENT LTD,07837119                 ,HOUSING SERVICES,Staying Put small repairs (contractors),Housing
Swale Borough Council,29UM,28/09/2022,1200893,995.00,WYNSDALE WASTE MANAGEMENT LTD,07837119                 ,HOUSING SERVICES,Staying Put small repairs (contractors),Housing
Swale Borough Council,29UM,28/09/2022,1201011,995.00,WYNSDALE WASTE MANAGEMENT LTD,07837119                 ,HOUSING SERVICES,Staying Put small repairs (contractors),Housing
Swale Borough Council,29UM,28/09/2022,1201127,749.33,YOUTH RESILIENCE UK CIC,11331473                 ,DEMOCRATIC & ELECTORAL SERVICES,Grants & Subscriptions,Corporate & Democratic Core
